Workbook

Sheet ReadMe
A1: Instructions for Electronic Forms, pg 1
A2: 2015 Seattle Energy Code Compliance Forms for Commercial Buildings including R2, R3, & R4 over 3 stories and all R1
B3: Revised Aug 2019
B4: Commercial Provision Chapters 1 - 6 of the 2015 Seattle Energy Code apply to all commercial occupancies, R-2, R-3 & R4 occupancies greater than 3 stories above grade, and R-1 occupancy (all building heights).
A5: Intro | B5: This file, ENVSEC15-v4.XLSM, has electronic compliance forms for general project information including Section C406, and envelope provisions as defined in Sections C101, C303, C402, C406, Chapter 5 (existing buildings) and Appendix A (default values) for Climate Zones 4c.
A6: Energy Code | B6: This form is a compliance aid and is not a substitute for the full energy code text or specific jurisdiction compliance requirements. Users should refer to the code text and contact the Seattle SDCI for complete information. The full 2015 Seattle Energy Code text is available for download from the SDCI website:
B7: http://www.seattle.gov/sdci/codes/codes-we-enforce-(a-z)/energy-code
A8: Training | B8: There are no explicit training materials for these forms. Refer to the NEEC website for instruction on how to complete all of the 2015 WSEC Compliance Forms which are very similar.
A9: Start-up | B9: Select this file from the Seattle SDCI website to download to your computer. When opening the file be sure to Enable Macros and if applicable Enable Content.
A10: Overview | B10: This file is an Excel workbook that contains multiple compliance forms and resources in Excel worksheets. Each worksheet is indicated by a tab at the bottom of the screen. You may visit each worksheet by selecting it's tab. If you cannot see these tabs, select "Full Screen" in Excel.
B11: Most calculations are automated. Cells that display informational text and the results of calculations are write-protected and cannot be edited.
A12: Save Files | B12: This file is saved in the same manner as any standard Excel file.
A13: Getting Around | B13: Some forms have two or more pages. Both pages are available on screen when you select the tab for a form (worksheet). Use the scroll bars to find the second page located below the first page.
A14: Input Cells | B14: All general project information and the date are entered once on PROJ-SUM. This information is automatically replicated on all other ENV forms. The PROJ-SUM form accompanies all other ENV forms.
B15: Only input cells are accessible. If you try to edit a write-protected cell an error message will appear requesting a password. A password IS NOT required to complete these forms. You may use the TAB key to move to the next input cell. If the TAB doesn't take you where you want to go, use your mouse to move around the form.
B16: Avoid excessively long text strings when entering information. In some cases, text that extends beyond the available space will not be visible. In most cases the text will wrap within the cell. This may force part of the form onto a new page.
B17: To enter the date, use this format: mm/dd/yyyy. For example, you would enter 7/1/2018 or 12/21/2018.
B18: Check boxes can be checked or unchecked by clicking in the box with your mouse. Radio buttons (circles) allow only one in a set to be selected.
B19: Drop-down lists have an arrow at the right side of the cell. Click on the arrow with your mouse and select the appropriate option. Use the delete button on your computer to clear a drop-down entry.
B20: When a form has a space for notes or explanation, click anywhere in the space to edit.
A21: Personalizing | B21: You can personalize the forms with your company name, address, phone, or any other information. This is done by editing the header or footer in Excel.
A22: Adding Lines and | B22: Many tables, such as for listing envelope assembly types, have a certain number of lines available for entering data. You may need more lines to enter all your information. Where this feature is available, you can add additional lines to the table by selecting the "+" button on the right hand side of the table with your mouse. If you can't see the "+" button, scroll to the right or increase the View Zoom setting for the worksheet.
A23: Removing | B23: To remove lines that you have added, select the "-" button with your mouse. You cannot remove lines that were not added; an error message will appear if you try.
B24: If you add additional lines with this method, the pagination may be affected forcing the forms to carry additional lines over to other pages. Be sure to submit all pages to the plans examiner.
A25: Target Insulation Allowance | B25: You must select an Target Insulation Allowance on ENV-SUM (line 18) to enable the forms.
A26: Compliance Path | B26: You must select a Compliance Path on ENV-SUM (line 19) to activate the correct input method for Window-to-Wall and Skylight-to-Roof ratios.
A27: Instructions for Electronic Forms, pg 2
A28: =A2 -> 2015 Seattle Energy Code Compliance Forms for Commercial Buildings including R2, R3, & R4 over 3 stories and all R1
B29: =B3 -> Revised Aug 2019
A30: Fenestration Area | B30: For projects complying via the Prescriptive Path, enter the vertical fenestration area, net wall area (includes everything except vertical fenestration), skylight area and net roof area (includes everything except skylights) directly into the Vertical Fenestration and Skylight Area Calculation input cells on the ENV-SUM form. The form will calculate the Window-to-Wall and Skylight-to-Roof ratios.
B31: For projects complying via the Component Performance Path, the Vertical Fenestration and Skylight Area inputs in the ENV-SUM form are write protected. Enter all applicable envelope information in the ENV-UA form. The resulting Window-to-Wall and Skylight-to-Roof ratios will auto fill into the ENV-SUM form from the ENV-UA form.
A32: Vertical Fenestration Alternates | B32: The prescriptive vertical fenestration target area is 30%. This target increases to 40% if the project complies with the requirements of C402.4.1.1 in buildings < 3 stories with 50% floor area in the daylight zone, C402.4.1.1 in buildings with ≥ 3 stories with 25% of net floor area in the daylight zone, C402.4.1.3 high performance vertical fenestration, or C402.4.1.4 dedicated outdoor air system (DOAS).
B33: If the project is eligible for one of these alternates, select the corresponding button on Line 38-43 of the ENV-SUM form. This will re-calculate the prescriptive target area in the ENV-SUM and ENV-UA forms based on 40%.
A34: Street Level Retail | B34: For projects utilizing the Street Level Retail (SLR) exception in Section C402.3.1, indicate the SLR on ENV-SUM. Enter the gross wall area qualifying for the SLR exception. Enter the fenestration area within the SLR wall. The glazing allowance that must be transferred from other building areas to the SLR, if any, is automatically calculated. Do NOT include SLR wall area or SLR fenestration area in the ENV-SUM Vertical Fenestration calculation or on ENV-UA. The SLR wall and fenestration must meet prescriptive code requirements, and may not use the component performance option.
A35: Component Performance Calculation Adjustments | B35: If the project is a Change of Occupancy (per C503.2) or Space Conditioning (per C505) and the project will comply via component performance, then select checkbox in Line 20 of ENV-SUM to adjust UA calculation to allow proposed UA to be 10% higher than the Code target UA.
B36: If the project will comply with the Enhanced Envelope additional efficiency package option per C406.8, then an ENV-UA form to demonstrate component performance compliance is required. Select checkbox in Line 20 of ENV-SUM to adjust component performance calculation to test whether the proposed UA is 15% lower than the Code target UA.
A37: Target Area Adjustment | B37: Target Area Adjustment is required if the project exceeds the prescriptive target area for vertical fenestration or skylights. Adjusted target areas are automatically calculated in the ENV-UA form using envelope assembly areas you enter for your project. Adjusted target areas will appear in the Target UA column in the ENV-UA form. Refer to Target Area Adjustment worksheet for the supporting calculations.
A38: Printing | B38: The forms should print on any printer supported by your operating system. You will need to have the following TrueType fonts installed under Windows: Arial, Times New Roman, Courier New and Wingdings. These are all standard Windows fonts.
B39: If you are losing form details when printing, you may have a shortage of printer memory. Try printing problem pages individually.
B40: By default, only the active worksheet is printed. To print more than one worksheet at a time, open your print set-up menu and select either the page range you wish to print or Entire Workbook.
B41: Forms (worksheets) in a workbook may not be deleted because the file is locked.
A42: Blank Forms | B42: DPD does not recommend completing these compliance forms by hand. Most worksheets run various calculations and compliance checks. To print blank forms to fill out by hand, delete all of the heading information at the beginning of ENV-SUM.
B43: For each radio button group there is a button labeled "Clear." Clicking this button will clear the other buttons so that they will print as empty circles. The "Clear" button will not print.
A44: End of Instructions for Electronic Forms

Sheet PROJ-SUM
A1: Project Summary | F1: PROJ-SUM
A2: =ReadMe!A2 -> 2015 Seattle Energy Code Compliance Forms for Commercial Buildings including R2, R3, & R4 over 3 stories and all R1 | F2: =ReadMe!B3 -> Revised Aug 2019
A3: General Info | B3: Project Title: | D3: 1 - This title will copy onto other forms | E3: Date | F3: 2019-01-01
B4: Project Street Address: | E4: For SDCI Use
B5: Project City, County, Zip:
B6: Project Owner or Rep:
B7: Jurisdiction:
A10: Project Description | I10: 4
A12: Occupancy Type | I12: 4
A17: Floor Area and Stories | C17: Floors Above Grade | D17: Building Gross Conditioned Floor Area | E17: Project Gross Conditioned Floor Area
A20: General Compliance Path | I20: linked
A28: Project Summary, pg 2 | F28: PROJ-SUM
A29: =A2 -> 2015 Seattle Energy Code Compliance Forms for Commercial Buildings including R2, R3, & R4 over 3 stories and all R1 | F29: =F2 -> Revised Aug 2019
A30: General Info | B30: Project Title: | D30: =IF('PROJ-SUM'!$D$3="1 - This title will copy onto other forms","1 - Fill this out on line 3 above ",'PROJ-SUM'!$D$3) -> 1 - Fill this out on line 3 above | E30: Date | F30: =F3 -> 2019-01-01
A32: C406 Additional Efficiency Package Options Summary | C32: Building level efficiency options: | E32: Current Scope | F32: Previous Projects
C33: C406.8 Enhanced envelope performance
C34: C406.9 Reduced air infiltration
C35: C406.5 On-site renewable energy
C36: Building area level efficiency options
C37: C406.2 More efficient HVAC equipment
C38: C406.6 Dedicated outside air systems (DOAS)
C39: C406.7 Reduced energy use in service water heating
C40: C406.3 Reduced lighting power
C41: C406.4 Enhanced digital lighting controls
C42: C406 Comments:

Sheet ENV-SUM
A1: Envelope Summary | G1: ENV-SUM
A2: =ReadMe!A2 -> 2015 Seattle Energy Code Compliance Forms for Commercial Buildings including R2, R3, & R4 over 3 stories and all R1 | G2: =ReadMe!B3 -> Revised Aug 2019
A3: Project Info | B3: Project Title: | C3: =IF('PROJ-SUM'!$D$3="1 - This title will copy onto other forms","1 - Fill this line out on PROJ-SUM",'PROJ-SUM'!$D$3) -> 1 - Fill this line out on PROJ-SUM | F3: Date | G3: =TEXT('PROJ-SUM'!$F$3,"mm/dd/yyyy") -> 01/01/2019
F4: For SDCI Use
B5: Company Name:
B6: Company Address:
B7: Applicant Name:
B8: Applicant Phone:
B9: Applicant Email:
A11: Project Description
A12: Envelope Project Scope
A13: Envelope Description
A14: Air Barrier Testing
A16: Compliance Documentation Scope and Method
A17: Scope of This Calculation
A18: Target Insulation Allowance
A19: Envelope Compliance Path
A20: Component Performance Calculation Adjustments
A21: Heating Energy Source
A22: Envelope Summary, pg. 2 | G22: ENV-SUM
A23: =A2 -> 2015 Seattle Energy Code Compliance Forms for Commercial Buildings including R2, R3, & R4 over 3 stories and all R1 | G23: =G2 -> Revised Aug 2019
A24: Project Title: | B24: =C3 -> 1 - Fill this line out on PROJ-SUM | F24: Date | G24: =G3 -> 01/01/2019
A26: Additions
A27: Alterations - Fenestration and Skylight
D29: Total Vertical Fenestration Area (rough opening) | E29: NET Exterior Above Grade Wall Area | F29: Total Skylight Area (rough opening) | G29: NET Exterior Roof Area
C30: New
C31: Existing
C32: Total | D32: =IF(OR(ISNUMBER(D31),ISNUMBER(D30)),D30+D31,"") ->  | E32: =IF(OR(ISNUMBER(E31),ISNUMBER(E30)),E30+E31,"") ->  | F32: =IF(OR(ISNUMBER(F31),ISNUMBER(F30)),F30+F31,"") ->  | G32: =IF(OR(ISNUMBER(G31),ISNUMBER(G30)),G30+G31,"") -> 
D33: Vertical Fenestration-to-Wall Ratio (WWR) | E33: =IF(SUM(D30:E31)>0,IF(SUM(E30:E31)>0,(SUM(D30:D31)+IF(AND(SLR=1,SLRtransfer>0),SLRtransfer,0))/SUM(D30:E31),"Enter wall area"),"") ->  | F33: Skylight-to-Roof Ratio (SRR) | G33: =IF(SUM(F30:G31)>0,IF(SUM(G30:G31)>0,SUM(F30:F31)/SUM(F30:G31),"Enter roof area"),"") -> 
C34: Area
A35: Vertical Fenestration Area Compliance | C35: Vertical Fenestration Area | D35: =IF(AND(ComponentPath<>3,ISNUMBER(E33)), IF(SLRerror, IF(SLRwindow>SLRwall,"SLR window area must be less than gross SLR wall area","Street level window area exceeds allowance of 75% of qualified gross wall plus transfered glazing area"), IF(EnvSumExmptSngl>EnvSumNetWall/100,"DOES NOT COMPLY. NO MORE THAN 1% OF GROSS WALL MAY BE EXEMPT GLASS", IF(E33=0,"NO VERTICAL FENESTRATION PROPOSED. COMPLIES WITH MAXIMUM ALLOWANCE.", IF(E33<=0.3,"VERTICAL FENESTRATION AREA COMPLIES WITH MAXIMUM ALLOWANCE", IF(E33<=0.4, IF(OR(dlz25pct,dlz50pct,hpfwin,hpmwin),"VERTICAL FENESTRATION AREA COMPLIES WITH MAXIMUM ALLOWED WITH FENESTRATION ALTERNATE", IF(ComponentPath=1,"Project exceeds maximum vertical fenestration area allowed for Prescriptive compliance. May comply prescriptively using a vertical fenestration alternate or via Component Performance with Target Area Adjustment.", IF(ComponentPath=2,"Project exceeds maximum target vertical fenestration area. Target area adjustment applied to UA calculation. May comply prescriptively using a vertical fenestration alternate.", ""))), IF(ComponentPath=1,"Project exceeds maximum vertical fenestration area allowed for Prescriptive compliance. Comply via Component Performance with Target Area Adjustment.", IF(ComponentPath=2,"Project exceeds maximum target vertical fenestration area. Target area adjustment applied to UA calculation.", ""))))))),"") -> 
A36: Skylight Area Compliance | C36: Skylight Area | D36: =IF(AND(CompliancePath<3,ISNUMBER(G33)), IF(G33>0.05, IF(CompliancePath=1, "Project exceeds maximum skylight area allowed for Prescriptive compliance. Comply via Component Performance with Target Area Adjustment.", IF(CompliancetPath=2, "Project exceeds target skylight area. Target area adjustment applied to UA calculation.", "")), IF(G33>0,"SKYLIGHT AREA COMPLIES WITH MAXIMUM ALLOWANCE","NO SKYLIGHT PROPOSED. COMPILIES WITH MAXIMUM ALLOWANCE.")),"") -> 
A37: Maximum Prescriptive Vertical Fenestration (%) | E37: =IF(OR(CompliancePath<3,CalcType<5),IF(SLR>1,IF(VertFenAlt=1,"40% per C402.3.1.3",IF(VertFenAlt=2,"40% per C402.3.1.1","30% per C402.3.1")),IF(VertFenAlt=1,"40% per C402.3.1.3 adjusted for SLR transfer",IF(VertFenAlt=2,"40% per C402.3.1.1 adjusted for SLR transfer","30% per C402.3.1 adjusted for SLR transfer"))),"") -> 
A38: Vertical Fenestration Alternates
C40: Daylight Zone Calculations
C41: =IF(dlz50pct,"Building Conditioned Floor Area"&CHAR(10)&"(building < 3 stories)",IF(dlz25pct,"Building Net Floor Area"&CHAR(10)&"(building ≥ 3 stories)", "Daylight Zone Fenestration Alternate Not Selected. No Calculations Required")) -> Daylight Zone Fenestration Alternate Not Selected. No Calculations Required | E41: Sidelight Daylight Zone Area | F41: Toplight Daylight Zone Area | G41: Percent Daylight Zone Area
G42: =IF(C42>0,SUM(E42:F42)/C42,0) -> 0
G43: =IF(AND(hpfwin,heatfuel<>2),"High performance fenestration option is not available to projects with Electric Resistance or Fossil Fuel Heat",IF(dlz50pct,IF(AND(C42>0,G42>0),IF(G42>=0.5,"Qualifies for Daylight Zone Alternate","Does Not Qualify for Daylight Zone Alternate"),""),IF(dlz25pct,IF(AND(C42>0,G42>0),IF(G42>=0.25,"Qualifies for Daylight Zone Alternate","Does Not Qualify for Daylight Zone Alternate"),""),""))) -> 
A44: Street Level Retail | G44: n/a
G45: n/a
G46: =IF(SLR=1,MAX(0,SLRwindow-0.75*SLRwall),"n/a") -> n/a | H46: =IF(SLR=1,IF(OR(SLRwindow>SLRwall,SLRwindow>0.75*SLRwall+SLRtransfer),TRUE,FALSE),FALSE) -> FALSE
A47: Envelope Summary, pg. 3 | G47: ENV-SUM
A48: =A27 -> Alterations - Fenestration and Skylight | G48: =G27 -> 00:00:00
A49: Project Title: | B49: =C3 -> 1 - Fill this line out on PROJ-SUM | F49: Date | G49: =G3 -> 01/01/2019
A51: Spaces in Single Story Building Requiring Skylights
C52: Space | D52: Area (ft2) | E52: DLZ Area (ft2) | F52: SRR or Aperture | G52: Exception
M54: 0
A57: Envelope Exemptions
E59: Wall Insulation R-Value | F59: Roof Insulation R-Value | G59: Overall Average U-Factor
C60: Equipment Building Envelope
F61: Electronic equipment power (watts/sf)
F62: Heating system output capacity (Btu/hr)
F63: Cooling capacity (Yes/No)
A70: SLR Adjustment Message
A71: =IF(AND(SLR=1,SLRtransfer>0),"Includes Street Level Retail transfer","") -> 

Sheet ENV-REQUIREMENTS
A1: Envelope Requirements Summary, Part 1 | F1: ENV-REQ
A2: =ReadMe!A2 -> 2015 Seattle Energy Code Compliance Forms for Commercial Buildings including R2, R3, & R4 over 3 stories and all R1 | F2: =ReadMe!B3 -> Revised Aug 2019
A3: Minimum Requirements
A4: for Prescriptive Compliance
B5: Prescriptive Path | C5: Table C402.1.3 Notes 1,7 Insulation Minimum R-Value | E5: Table C402.1.4 Notes 1,2 Assembly Maximum U-factor
B6: Occupancy Group | C6: All Other | D6: Group R | E6: All Other | F6: Group R
A7: Opaque Elements
A8: Roofs
B9: Insulation Entirely above Deck | C9: R-38 c.i. | D9: R-38 c.i. | E9: U-0.027 | F9: U-0.027
B10: Metal Building (with thermal spacer block) Note 3 | C10: R-25 + R-22 Ls | D10: R-25 + R-22 Ls | E10: U-0.027 | F10: U-0.027
B11: Attic and Other | C11: R-49 | D11: R-49 | E11: U-0.021 | F11: U-0.021
B12: Joist or single rafter | C12: R-49 | D12: R-49 | E12: U-0.027 | F12: U-0.027
A13: Walls, Above-grade
B14: Mass | C14: Exterior R-16 c.i. Note 6,or Interior R-13 + R6 c.i. wood stud, or Interior R-13+R-10 c.i. metal stud | E14: U-0.057 | F14: U-0.057
B15: Mass transfer deck slab edge | C15: No R-Value for prescriptive compliance | E15: U-0.200 | F15: U-0.200
B16: Metal Building | C16: R-19 c.i., or R-13 + R-13 c.i. | E16: U-0.052 | F16: U-0.052
B17: Steel Framed | C17: R-13 + R-10c.i. | D17: R-19 + R-8.5 c.i. | E17: U-0.055 | F17: U-0.055
B18: Wood Framed and Other | C18: R-13 + R-7.5 c.i. | D18: R-21 w/ int. frame | E18: U-0.051 | F18: U-0.054
A19: Below Grade Wall Note 4 | C19: Exterior: R-10 c.i. Interior: R-19 wood stud, or R-13 +R-6 c.i. metal stud | E19: U-0.070 | F19: U-0.070
A20: Floors
B21: Mass | C21: R-30 c.i. | D21: R-30 c.i. | E21: U-0.029 | F21: U-0.029
B22: Steel Joist | C22: R-38 + R-4 c.i. | D22: R-38 + R-4 c.i. | E22: U-0.029 | F22: U-0.029
B23: Wood Joist | C23: R-38 | D23: R-38 | E23: U-0.025 | F23: U-0.025
A24: Slab-On-Grade Floors
B25: Unheated | C25: R-10 for 24 in. (from top of slab) | E25: F-0.54 | F25: F-0.54
B26: Heated Note 5 | C26: R-10 perimeter & under entire slab | E26: F-0.55 | F26: F-0.55
A27: Opaque Doors
B28: Swinging | C28: No R-Value for prescriptive compliance | E28: U-0.37 | F28: U-0.37
B29: Nonswinging (Roll-up or sliding) | C29: R-4.75 | D29: R-4.75 | E29: U-0.34 | F29: U-0.34
A30: Fenestration | C30: Assembly Maximum U-factor Notes 1,2
C31: Table C402.4 - 0-30% of wall area, or 30%-40% per Section C402.4.1.1 DLZ or Section C402.4.1.4 DOAS | E31: Section C402.3.1.4 High Performance Fenestration Option - 0-40% of wall area
C32: Column A Electric Res. And Fossil Fuel | D32: Column B Other Heating Fuel Note 8 | E32: Other Heating Fuel Only Note 8
A33: Vertical Fenestration
B34: Nonmetal framing | C34: U-0.26 | D34: U-0.30 | E34: U-0.28
B35: Metal framing (fixed) | C35: U-0.31 | D35: U-0.38 | E35: U-0.34
B36: Metal framing (operable) | C36: U-0.38 | D36: U-0.40 | E36: U-0.36
B37: Entrance doors | C37: U-0.60 | D37: U-0.60 | E37: U-0.60
A38: Skylights
B39: Skylights | C39: U-0.50 | D39: U-0.50 | E39: U-0.50
A40: Fenestration | C40: Assembly Maximum SHGC Factor
A41: Vertical Fenestration | C41: PF<0.2: north - SHGC=0.53; all other SHGC=0.35 0.2 ≤ PF < 0.5: north - SHGC-0.58; all other - SHGC-0.45 PF ≥ 0.5: north - SHGC-0.64; all other - SHGC-0.60 | E41: SHGC-0.35
A42: Skylights | C42: SHGC-0.32 | E42: SHGC-0.35
A43: C410.2 Refrigerated Spaces Insulation | C43: Insulation Minimum R-Value | E43: Assembly Maximum U-factor
A44: Freezers - Walk-in and Warehouse
B45: Roof / Ceiling | C45: R-32 | E45: U-0.030
B46: Wall | C46: R-32 | E46: U-0.030
B47: Door | C47: R-32 | E47: U-0.030
B48: Door - transparent reach-in | C48: triple-pane, heat-reflective treated or gas fill
B49: Floor | C49: R-28 | E49: U-0.035
A50: Coolers - Walk-in and Warehouse
B51: Roof / Ceiling | C51: R-25 | E51: U-0.039
B52: Wall | C52: R-25 | E52: U-0.039
B53: Door | C53: R-25 | E53: U-0.039
B54: Door - transparent reach-in | C54: double-pane, heat-reflective treated & gas fill, or comply with freezer door req.
B55: Floor | C55: No Requirement
A56: Envelope Requirements Summary, Part 2 | F56: ENV-REQ
A57: =A2 -> 2015 Seattle Energy Code Compliance Forms for Commercial Buildings including R2, R3, & R4 over 3 stories and all R1 | F57: =F2 -> Revised Aug 2019
A58: Definitions:
A63: Footnote Summary:
B74: Alternate continuous insulation nominal R-values
A99: End of Envelope Requirements Summary

Sheet ENV-PRESCRIPTIVE
A1: Prescriptive Path, pg. 1 | H1: ENV-PRESCRIPTIVE
A2: ='ENV-SUM'!A2 -> 2015 Seattle Energy Code Compliance Forms for Commercial Buildings including R2, R3, & R4 over 3 stories and all R1 | H2: ='ENV-SUM'!G2 -> Revised Aug 2019
A3: ='ENV-SUM'!B3 -> Project Title: | D3: =IF('PROJ-SUM'!$D$3="1 - This title will copy onto other forms","1 - Fill this line out on PROJ-SUM",'PROJ-SUM'!$D$3) -> 1 - Fill this line out on PROJ-SUM | G3: Date | H3: =TEXT('PROJ-SUM'!$F$3,"mm/dd/yyyy") -> 01/01/2019
A4: Target Insulation Allowance: | G4: For SDCI Use
B5: =IF(CompliancePath<>2,"Component Performance Not Selected",IF(CalcType=1,"Fully Conditioned Space - Commercial, Group R, Mixed Use",IF(CalcType=2,"Semi-heated Space",IF(CalcType=3,"Refrigerated Cooler - See note 11 on ENV-UA",IF(CalcType=4,"Refrigerated Freezer - See note 12 on ENV-UA",""))))) -> Component Performance Not Selected
A6: Fenestration Area as % gross above-grade wall area | D6: =IF('ENV-SUM'!E33>0,'ENV-SUM'!E33,0) ->  | E6: Max. Target: | F6: ='Target Area Adjustments'!D17 -> 0.3
A7: Skylight Area as % gross roof area | D7: =IF('ENV-SUM'!G33>0,'ENV-SUM'!G33,0) ->  | E7: Max. Target: | F7: ='Target Area Adjustments'!D73 -> 0.05
A8: Vertical Fenestration Alternates: | F8: ='TA1'!A28 -> None Selected on ENV-SUM | G8: User Note
A10: Building Component | D10: R-Value Method for Prescriptive Compliance | G10: U-Factor/F-Factor Method for Prescriptive Compliance
C11: Provide plan/detail # of assembly and description | D11: Cavity Ins. R-Value | E11: Continuous Ins. (CI) R-Value1 | F11: % Area of Metal Penetrations in CI2 | G11: Assembly U-Factor | H11: U-Factor Source3
M14: 0
M20: 0
M46: 0
M50: 0
A58: Prescriptive Path, pg. 2 | H58: ENV-PRESCRIPTIVE
A59: =A2 -> 2015 Seattle Energy Code Compliance Forms for Commercial Buildings including R2, R3, & R4 over 3 stories and all R1 | H59: =H2 -> Revised Aug 2019
A60: ='ENV-SUM'!B3 -> Project Title: | D60: =D3 -> 1 - Fill this line out on PROJ-SUM | G60: Date | H60: =H3 -> 01/01/2019
A61: Fenestration Area as % gross above-grade wall area | D61: =D6 ->  | E61: Max. Target: | F61: =F6 -> 0.3 | G61: For Building Department Use
A62: Skylight Area as % gross roof area | D62: =D7 ->  | E62: Max. Target: | F62: =F7 -> 0.05
A64: Building Component | D64: R-Value Method for Prescriptive Compliance | G64: U-Factor/F-Factor Method for Prescriptive Compliance
C65: Provide plan/detail # of assembly and description | D65: Perim. Ins. R-Value | E65: Full Slab CI R-Value | G65: F-Factor | H65: F-Factor Source10
M68: 0
L71: 0 | M71: 0
C72: Provide ID from door schedule and description | D72: Ins. R-Value | G72: Assembly U-Factor | H72: U-Factor Source11
D79: Solar Heat Gain Coefficient (SHGC) | G79: U-Factor for Prescriptive Compliance
C80: Provide ID from window schedule and description | D80: Projection Factor (PF) if applicable12 | E80: Orientation (N or SEW)13 | F80: Assembly SHGC14 | G80: Assembly U-Factor | H80: U-Factor Source14
A98: Miscellaneous - Refrigerated Spaces
C99: Provide plan/detail # of assembly and description | D99: Ins. R-Value | G99: Assembly U-Factor | H99: U-Factor Source
M102: 0
C103: Provide ID from window schedule and description | D103: Cooler / Freezer | E103: Double Pane Glass | F103: Triple Pane Glass | G103: Inert Gas Filled | H103: Heat Reflective Treated Glass
M106: 0
M109: 0
A129: Cooler
A130: Freezer
A131: Yes
A132: No
C133: square inches per square foot
A134: ≤ 0.04% | C134: =144*0.04*0.01 -> 0.0576
A135: 0.04% - 0.079% | C135: =144*0.08*0.01 -> 0.1152
A136: 0.08% - 0.119% | C136: =144*0.12*0.01 -> 0.1728
A138: N
A139: SEW

Sheet ENV-UA
A1: Component Performance Path, pg. 1 | L1: ENV-UA
A2: ='ENV-SUM'!A2 -> 2015 Seattle Energy Code Compliance Forms for Commercial Buildings including R2, R3, & R4 over 3 stories and all R1 | L2: ='ENV-SUM'!G2 -> Revised Aug 2019
A3: ='ENV-SUM'!B3 -> Project Title: | F3: =IF('PROJ-SUM'!$D$3="1 - This title will copy onto other forms","1 - Fill this line out on PROJ-SUM",'PROJ-SUM'!$D$3) -> 1 - Fill this line out on PROJ-SUM | J3: Date | K3: =TEXT('PROJ-SUM'!$F$3,"mm/dd/yyyy") -> 01/01/2019
A4: Target Insulation Allowance: | J4: For SDCI Use
D5: =IF(CompliancePath<>2,"Component Performance Not Selected",IF(CalcType=1,"Fully Conditioned Space - Commercial, Group R, Mixed Use",IF(CalcType=2,"Semi-heated Space",IF(CalcType=3,"Refrigerated Cooler - See note 11 on ENV-UA",IF(CalcType=4,"Refrigerated Freezer - See note 12 on ENV-UA",""))))) -> Component Performance Not Selected
A6: Calculation Adjustments
D7: =IF(ChangeofUseOrConditioning,IF(C406.8_Enhanced_Envelope,"Proposed UA shall be at least 5% lower than Target UA","Proposed UA is allowed to be 10% higher than Target UA"),IF(C406.8_Enhanced_Envelope,IF(SecC411_Exception3,"Proposed UA shall be at least 30% lower than Target UA","Proposed UA shall be at least 15% lower than Target UA"),IF(SecC411_Exception3,"Proposed UA shall be at least 15% lower than Target UA","None Applied"))) -> None Applied
A8: Fenestration Area as % gross above-grade wall area | G8: =IF('ENV-SUM'!E33>0,'ENV-SUM'!E33,0) ->  | H8: Max. Target: | I8: ='Target Area Adjustments'!D17 -> 0.3
A9: Skylight Area as % gross roof area | G9: =IF('ENV-SUM'!G33>0,'ENV-SUM'!G33,0) ->  | H9: Max. Target: | I9: ='Target Area Adjustments'!D73 -> 0.05
A10: Vertical Fenestration Alternates: | I10: ='TA1'!A28 -> None Selected on ENV-SUM
F11: Vertical Fenestration | H11: Net Wall | J11: User Note
F12: Skylights | H12: Net Roof
A13: Envelope Component | H13: Proposed UA | J13: Target UA
D14: Cavity+CI | E14: Plan/Detail # | F14: U-factor Source & Table # 2 | G14: U-factor | H14: x Area (A) | I14: = UA (U x A) | J14: U-factor | K14: x Area (A) = | L14: UA (U x A)
C15: R= | I15: =IF(AND(G15=0,H15=0),0,IF(OR(G15=0,H15=0),NA(), H15*G15)) -> 0 | J15: ='TA1'!F131 -> 0.027 | K15: ='Target Area Adjustments'!J90 -> 0 | L15: =IF(TYPE(J15*K15)<>1,0,J15*K15) -> 0
C16: R= | I16: 0 | J16: Above Deck Insulation | L16: ='TA1'!F164 -> U-0.027
C17: R= | I17: =IF(AND(G17=0,H17=0),0,IF(OR(G17=0,H17=0),NA(), H17*G17)) -> 0 | M17: 0
C18: R= | I18: 0 | J18: ='TA1'!F132 -> 0.027 | K18: ='Target Area Adjustments'!J91 -> 0 | L18: =IF(TYPE(J18*K18)<>1,0,J18*K18) -> 0
C19: R= | I19: 0 | J19: Metal Building | L19: ='TA1'!F165 -> U-0.027
C20: R= | I20: 0 | M20: 0
C21: R= | I21: =IF(AND(G21=0,H21=0),0,IF(OR(G21=0,H21=0),NA(), H21*G21)) -> 0 | J21: ='TA1'!F134 -> 0.027 | K21: ='Target Area Adjustments'!J92 -> 0 | L21: =IF(TYPE(J21*K21)<>1,0,J21*K21) -> 0
C22: R= | I22: =IF(AND(G22=0,H22=0),0,IF(OR(G22=0,H22=0),NA(), H22*G22)) -> 0 | J22: Joist/single rafter | L22: ='TA1'!F167 -> U-0.027
C23: R= | I23: =IF(AND(G23=0,H23=0),0,IF(OR(G23=0,H23=0),NA(), H23*G23)) -> 0 | M23: 0
C24: R= | I24: 0 | J24: ='TA1'!F133 -> 0.021 | K24: ='Target Area Adjustments'!J93 -> 0 | L24: =IF(TYPE(J24*K24)<>1,0,J24*K24) -> 0
C25: R= | I25: 0 | J25: Single raft, attic, other | L25: ='TA1'!F166 -> U-0.021
C26: R= | I26: 0 | M26: 0
C27: R= | I27: =IF(AND(G27=0,H27=0),0,IF(OR(G27=0,H27=0),NA(), H27*G27)) -> 0 | J27: ='TA1'!F137 -> 0.055 | K27: ='Target Area Adjustments'!J43 -> 0 | L27: =IF(TYPE(J27*K27)<>1,0,J27*K27) -> 0
C28: R= | I28: =IF(AND(G28=0,H28=0),0,IF(OR(G28=0,H28=0),NA(), H28*G28)) -> 0 | J28: Steel/metal frame | L28: ='TA1'!F170 -> U-0.055
C29: R= | I29: 0 | M29: 0
C30: R= | I30: 0 | J30: ='TA1'!F136 -> 0.052 | K30: ='Target Area Adjustments'!J44 -> 0 | L30: =IF(TYPE(J30*K30)<>1,0,J30*K30) -> 0
C31: R= | I31: 0 | J31: Metal Building | L31: ='TA1'!F169 -> U-0.052
C32: R= | I32: 0 | M32: 0
C33: R= | I33: 0 | J33: ='TA1'!F138 -> 0.051 | K33: ='Target Area Adjustments'!J45 -> 0 | L33: =IF(TYPE(J33*K33)<>1,0,J33*K33) -> 0
C34: R= | I34: 0 | J34: Wood Frame, other | L34: ='TA1'!F171 -> U-0.051
C35: R= | I35: 0 | M35: 0
C36: R= | I36: =IF(AND(G36=0,H36=0),0,IF(OR(G36=0,H36=0),NA(), H36*G36)) -> 0 | J36: ='TA1'!F135 -> 0.057 | K36: ='Target Area Adjustments'!J46 -> 0 | L36: =IF(TYPE(J36*K36)<>1,0,J36*K36) -> 0
C37: R= | I37: =IF(AND(G37=0,H37=0),0,IF(OR(G37=0,H37=0),NA(), H37*G37)) -> 0 | J37: Mass Wall | L37: ='TA1'!F168 -> U-0.057
C38: R= | I38: 0 | M38: 0
C39: R= | I39: =IF(AND(G39=0,H39=0),0,IF(OR(G39=0,H39=0),NA(), H39*G39)) -> 0 | J39: ='TA1'!F139 -> 0.2 | K39: ='Target Area Adjustments'!J47 -> 0 | L39: =IF(TYPE(J39*K39)<>1,0,J39*K39) -> 0
C40: R= | I40: 0 | J40: Mass Transfer Deck | L40: ='TA1'!F172 -> U-0.20
C41: R= | I41: 0 | M41: 0
C42: R= | I42: 0 | J42: ='TA1'!G138 -> 0.054 | K42: ='Target Area Adjustments'!J48 -> 0 | L42: =IF(TYPE(J42*K42)<>1,0,J42*K42) -> 0
C43: R= | I43: 0 | J43: Group R Wood/Oth. Wall | L43: ='TA1'!G171 -> U-0.054
C44: R= | I44: 0 | M44: 0
C45: R= | I45: 0 | J45: ='TA1'!F147 -> 0.07 | K45: =SUM(H45:H48) -> 0 | L45: =IF(TYPE(J45*K45)<>1,0,J45*K45) -> 0
C46: R= | I46: 0 | J46: Assumed to be Mass Wall | L46: ='TA1'!F180 -> U-0.07
C47: R= | I47: =IF(AND(G47=0,H47=0),0,IF(OR(G47=0,H47=0),NA(), H47*G47)) -> 0
C48: R= | I48: 0 | M48: 0
C49: R= | I49: 0 | J49: ='TA1'!F141 -> 0.029 | K49: =SUM(H49:H51) -> 0 | L49: =IF(TYPE(J49*K49)<>1,0,J49*K49) -> 0
C50: R= | I50: 0 | J50: Mass Floor | L50: ='TA1'!F174 -> U-0.029
C51: R= | I51: 0 | M51: 0
C52: R= | I52: =IF(AND(G52=0,H52=0),0,IF(OR(G52=0,H52=0),NA(), H52*G52)) -> 0 | J52: ='TA1'!F143 -> 0.029 | K52: =SUM(H52:H54) -> 0 | L52: =IF(TYPE(J52*K52)<>1,0,J52*K52) -> 0
C53: R= | I53: 0 | J53: Joist/Framing | L53: ='TA1'!F172 -> U-0.20
C54: R= | I54: 0 | M54: 0
C55: R= | I55: 0 | J55: ='TA1'!F144 -> 0.025 | K55: =SUM(H55:H57) -> 0 | L55: =IF(TYPE(J55*K55)<>1,0,J55*K55) -> 0
C56: R= | I56: 0 | J56: Joist/Framing | L56: ='TA1'!F175 -> U-0.029
C57: R= | I57: 0 | M57: 0
H59: Area1 | I59: UA | K59: Area1 | L59: UA
D60: =IF(H60<>K60,"Target Area Adjusted","") ->  | G60: Page 1 Subtotal | H60: =SUM(H15:H57) -> 0 | I60: =SUM(I15:I57) -> 0 | K60: =SUM(K15:K57) -> 0 | L60: =SUM(L15:L57) -> 0
A62: Component Performance Compliance (UA) | L62: =L114 -> 
A63: Component Performance Path, pg. 2 | L63: ENV-UA
A64: =A2 -> 2015 Seattle Energy Code Compliance Forms for Commercial Buildings including R2, R3, & R4 over 3 stories and all R1 | L64: =L2 -> Revised Aug 2019
A65: ='ENV-SUM'!B3 -> Project Title: | F65: =F3 -> 1 - Fill this line out on PROJ-SUM | J65: Date | K65: =K3 -> 01/01/2019
A66: Fenestration Area as % gross above-grade wall area | G66: =G8 ->  | H66: Max. Target: | I66: =I8 -> 0.3 | J66: For Building Department Use
A67: Skylight Area as % gross roof area | G67: =G9 ->  | H67: Max. Target: | I67: =I9 -> 0.05
A69: Building Component | H69: Proposed UA | J69: Target UA
D70: Ins. R | E70: Plan/Detail # | F70: F-factor Source & Table # 8 | G70: F-factor | H70: x Perimeter | I70: = FP(F x P) | J70: F-factor | K70: x Perimeter = | L70: FP (F x P)
C71: R= | I71: =IF(AND(G71=0,H71=0),0,IF(OR(G71=0,H71=0),NA(), H71*G71)) -> 0 | J71: ='TA1'!F145 -> 0.54 | K71: =SUM(H71:H73) -> 0 | L71: =IF(TYPE(J71*K71)<>1,0,J71*K71) -> 0
C72: R= | I72: 0 | J72: Slab-On-Grade | L72: ='TA1'!F178 -> F-0.54
C73: R= | I73: 0 | M73: 0
C74: R= | I74: 0 | J74: ='TA1'!F146 -> 0.55 | K74: =SUM(H74:H76) -> 0 | L74: =IF(TYPE(J74*K74)<>1,0,J74*K74) -> 0
C75: R= | I75: 0 | J75: Heated Slab-On-Grade | L75: ='TA1'!F179 -> F-0.55
C76: R= | I76: 0 | M76: 0
C77: Schedule ID | F77: U-factor Source9,10 | G77: U-factor | H77: x Area (A) | I77: = UA (U x A) | J77: U-factor | K77: x Area (A) = | L77: UA (U x A)
I78: =IF(AND(G78=0,H78=0),0,IF(OR(G78=0,H78=0),NA(), H78*G78)) -> 0 | J78: ='TA1'!F129 -> 0.37 | K78: =SUM(H78:H80) -> 0 | L78: =IF(TYPE(J78*K78)<>1,0,J78*K78) -> 0
I79: 0 | J79: Opaque Swing Doors | L79: ='TA1'!F162 -> U-0.37
I80: =IF(AND(G80=0,H80=0),0,IF(OR(G80=0,H80=0),NA(), H80*G80)) -> 0 | M80: 0
I81: 0 | J81: ='TA1'!F130 -> 0.34 | K81: =SUM(H81:H83) -> 0 | L81: =IF(TYPE(J81*K81)<>1,0,J81*K81) -> 0
I82: 0 | J82: Opaque rollup & sliding | L82: ='TA1'!F163 -> U-0.34
I83: 0
I84: 0 | J84: ='TA1'!F124 -> set fuel | K84: ='Target Area Adjustments'!J38 -> 0 | L84: =IF(TYPE(J84*K84)<>1,0,J84*K84) -> 0
I85: 0 | J85: Non-Metal Frame | L85: ='TA1'!F157 -> set fuel
I86: 0
I87: 0 | J87: ='TA1'!F125 -> set fuel | K87: ='Target Area Adjustments'!J39 -> 0 | L87: =IF(TYPE(J87*K87)<>1,0,J87*K87) -> 0
I88: 0 | J88: Metal Frame, Fixed | L88: ='TA1'!F158 -> set fuel
I89: 0
I90: 0
I91: 0 | J91: ='TA1'!F126 -> set fuel | K91: ='Target Area Adjustments'!J40 -> 0 | L91: =IF(TYPE(J91*K91)<>1,0,J91*K91) -> 0
I92: 0 | J92: Metal Frame, Operable | L92: ='TA1'!F159 -> set fuel
I93: 0
I94: 0
I95: 0 | J95: ='TA1'!F127 -> set fuel | K95: ='Target Area Adjustments'!J41 -> 0 | L95: =IF(TYPE(J95*K95)<>1,0,J95*K95) -> 0
I96: 0 | J96: Metal Frame, Entrance Dr. | L96: ='TA1'!F160 -> set fuel
I97: 0
I98: 0
I99: 0 | J99: ='TA1'!F128 -> 0.45 | K99: ='Target Area Adjustments'!J88 -> 0 | L99: =IF(TYPE(J99*K99)<>1,0,J99*K99) -> 0
I100: 0 | J100: All types | L100: ='TA1'!F161 -> U-0.45
I101: 0
I102: 0
A104: Refrigerated Space Freezer Floors | H104: Proposed UA | J104: Target UA
D105: CI | E105: Plan/Detail # | F105: U-factor Source & Table # 2 | G105: U-factor | H105: x Area (A) | I105: = UA (U x A) | J105: U-factor | K105: x Area (A) = | L105: UA (U x A)
C106: R= | I106: =IF(AND(G106=0,H106=0),0,IF(OR(G106=0,H106=0),NA(),H106*G106)) -> 0 | J106: =IF(CalcType<>4,"",'TA1'!F144) ->  | K106: =SUM(H106:H108) -> 0 | L106: =IF(J106="NR","NR",IF(TYPE(J106*K106)<>1,0,J106*K106)) -> 0
C107: R= | I107: =IF(AND(G107=0,H107=0),0,IF(OR(G107=0,H107=0),NA(),H107*G107)) -> 0 | J107: Freezer Floor | L107: =IF(CalcType<>4,"",'TA1'!F177) -> 
C108: R= | I108: =IF(AND(G108=0,H108=0),0,IF(OR(G108=0,H108=0),NA(),H108*G108)) -> 0 | M108: 0
H109: Area1 | I109: UA | K109: Area1 | L109: UA
D110: =IF(H110<>K110,"Target Area Adjusted","") ->  | G110: Page 2 Subtotal | H110: =SUM(H71:H108) -> 0 | I110: =SUM(I71:I108) -> 0 | K110: =K106+K99+K95+K91+K87+K84+K81+K78+K74+K71 -> 0 | L110: =L106+L99+L95+L91+L87+L84+L81+L78+L74+L71 -> 0
G111: Page 1 Subtotal | H111: =H60 -> 0 | I111: =I60 -> 0 | K111: =K60 -> 0 | L111: =L60 -> 0
G112: Project Total | H112: =H111+H110 -> 0 | I112: =I111+I110 -> 0 | K112: =K111+K110 -> 0 | L112: =L111+L110 -> 0
A114: Component Performance Compliance (UA) | L114: =IF(H112>0,IF(CompliancePath<>2,"Component Performance Not Selected",IF(CalcType=5,"Target Insulation Allowance not selected", IF(OR(L112=0,I112=0),"", IF(C406.8_Enhanced_Envelope, IF(SecC411_Exception3, IF(I112<L112*0.7+0.00001,"UA COMPLIES", "UA DOES NOT COMPLY WITH C406.8 AND C411"), IF(I112<L112*0.85+0.00001,"UA COMPLIES", IF(ChangeofUseOrConditioning, IF(I112<L112*0.95+0.00001,"UA COMPLIES", "UA DOES NOT COMPLY WITH C406.8"), "UA DOES NOT COMPLY WITH C406.8"))), IF(SecC411_Exception3, IF(I112<L112*0.85+0.00001,"UA COMPLIES", "UA DOES NOT COMPLY WITH C411, EXCEPTION 3"), IF(I112<L112+0.00001,"UA COMPLIES", IF(ChangeofUseOrConditioning, IF(I112>L112*1.10001,"UA DOES NOT COMPLY", "UA COMPLIES W/ EXISTING SPACE EXEMPTION"), "UA DOES NOT COMPLY") )))))),"") -> 
A116: Refrigerated Space Windows In Doors 11, 12
E117: Plan/Detail # | F117: Description | G117: Cooler / Freezer | H117: Double Pane Glass | I117: Triple Pane Glass | J117: Inert Gas Filled | K117: Heat Reflective Treated Glass
M120: 0
M123: 0

Sheet TA1 (hidden)
A1: HARD CODED -- NOT SET on ENV-SUM or ENV-PROJ
A2: =IF(OR(CalcType=3,CalcType=4),2,1) -> 1 | B2: Calculation Group: 1=Building, 2=Refrigeration
A3: 4 | B3: Climate Zone: 1= Zone 4c/5, 2=Zone 6, 3=Cleared, 4= Seattle
A5: Transfer Variables - DO NOT CHANGE CELL ADDRESS - hard coded in VB
A6: ='Target Area Adjustments'!F12 -> 0 | B6: Window Area
A7: ='Target Area Adjustments'!L12 -> 0 | B7: Net AG Wall Area
A8: ='Target Area Adjustments'!F69 -> 0 | B8: Skylight Area
A9: ='Target Area Adjustments'!H69 -> 0 | B9: Net Ceiling Area
A10: ='Target Area Adjustments'!F13 -> 0 | B10: Existing Window Area
A11: ='Target Area Adjustments'!L13 -> 0 | B11: Existing Net AG Wall Area
A12: ='Target Area Adjustments'!F70 -> 0 | B12: Existing Skylight Area
A13: ='Target Area Adjustments'!H70 -> 0 | B13: Existing Net Ceiling Area
A15: Flags from Env-Sum Options
A16: FALSE | B16: New building | C16: NOT USED
A17: FALSE | B17: Addition | C17: NOT USED
A18: FALSE | B18: Alteration | C18: NOT USED
A19: FALSE | B19: Window WWR unchanged
A20: FALSE | B20: Skylight SRR unchanged
A22: 4 | B22: Occupancy Group: 2017 LEAVE SET TO ONE, WAS: 1=Non Res, 2= Res, 3=Mixed Use , 4=none specified
A23: 3 | B23: Compliance Path: 1= Prescriptive, 2=component performance, 3= not specified | M23: ERROR MESSAGES - NOT USED BUT WOULD BE GOOD WAY TO STRUCTURE ERROR MESSAGES SO NEEC CAN MODIFY AS NEEDED
A24: 5 | B24: Calculation Type: 1- normal, 2-semi-heat, 3-refrigerated cooler, 4-refrigerated freezer, 5-clear | M24: page | N24: cell | O24: label | P24: message
A25: 3 | B25: Vertical Fenestration Alternates: 1= 50% DLZ, 2= 25% DLZ, 4= high performance window, 3=none, 5=high performance mechanical | M25: ENV-SUM | N25: D21 | O25: msgpre31noopts | P25: Project exceeds maximum vertical fenestration area for Prescriptive compliance. Comply via 50% DLZ Option (C402.3.1.1) or High Performance Window Option (C402.3.1.3) or Component Performance with Target Area Adjustment.
M26: ENV-SUM | N26: D21 | O26: msgpre41opts | P26: Project exceeds maximum vertical fenestration area for Prescriptive compliance. Comply via Component Performance with Target Area Adjustment.
A27: Derived Flags to provide name variables to clarify calculations | M27: ENV-SUM | N27: D21
A28: =IF(VertFenAlt=1," 50% Conditioned Floor Area in Daylight Zone",IF(VertFenAlt=2,"25% of Net Floor Area in Daylight Zone",IF(VertFenAlt=4,"High Performance Vertical Fenestration",IF(VertFenAlt=5,"Dedicated Outdoor Air System","None Selected on ENV-SUM")))) -> None Selected on ENV-SUM | B28: Vertical Fenestration Alternates text | M28: ENV-SUM | N28: D21
A29: =(VertFenAlt=1) -> FALSE | B29: >=50% of conditioned floor area in DLZ & building ≤ 2 stories: 1=yes, 2 no | M29: ENV-SUM | N29: D21
A30: =(VertFenAlt=2) -> FALSE | B30: >=25% of net floor area in DLZ & building ≥ 3 stories: 1=yes, 2 no | M30: ENV-SUM | N30: D21
A31: =(VertFenAlt=4) -> FALSE | B31: high performance glazing path (2-no, 1- yes) | M31: ENV-SUM | N31: D21
A32: =(VertFenAlt=5) -> FALSE | B32: high performance mechanical path (2-no, 1- yes) | M32: ENV-SUM | N32: D21
A33: =IF(OR(VertFenAlt=3,AND(VertFenAlt=4,heatfuel<>2)),0.3,0.4) -> 0.3 | B33: Maximum prescriptive / comp WWR NOT USED AFAIK | M33: ENV-SUM | N33: D21 | O33: msgcomply | P33: COMPLIES
A34: FALSE | B34: Change of Use / Conditioning
A35: FALSE | B35: C406.8 Enhanced Envelope | M35: ENV-SUM | N35: D21 | O35: msgua31noopts | P35: Project exceeds maximum target vertical fenestration area. Target area adjustment applied to UA calculation. May comply via 50% DLZ Option (C402.3.1.1) or High Performance Window Option (C402.3.1.3).
A36: =CalcType=2 -> FALSE | B36: Semi-ht Calculation
A37: =IF(AND(OR(Alteration),WWR_unchanged),TRUE,FALSE) -> FALSE | B37: Project is alteration and Window WWR unchanged
A38: =IF(AND(OR(Alteration),SRR_unchanged),TRUE,FALSE) -> FALSE | B38: Project is alteration and Skylight SRR unchanged
A41: Flags - Seattle Specific
A42: 3 | B42: Heating type (1 - Electric, 2 - Other)
A43: 2 | B43: Street level retail: 1=yes, 2 - no but paired submitted, 3 - no
A44: FALSE | B44: C411 OnSite renewable exception 3 | M44: ENV-SUM | N44: D21 | O44: msgua41dlz | P44: Project exceeds maximum target vertical fenestration area. Target area adjustment applied to UA calculation.
A45: HEADER Row - NOT USED 2015 | M45: ENV-SUM | N45: D21 | O45: msgua41hpf | P45: Project exceeds maximum target vertical fenestration area. Target area adjustment applied to UA calculation.
A46: Occupancy | C46: NOT USED 2015
A47: Climate zone | B47: =IF(A22=3," ",IF(A3=1,"Zones 4c/5b",IF(A3=2,"Zone 6b",IF(A3=4,"Seattle","")))) -> Seattle | C47: NOT USED 2015
A48: Header | B48: =IF(AND(B46<>"",B47<>""),CONCATENATE(B47," ",B46),"") ->  | C48: NOT USED 2015
A49: 3 | B49: Prescriptive PF Factor - not used in 2015
A50: 3 | B50: North Face Credit Flag - not used in 2015
A52: Form Management - NOT USED 2015
A53: =OR(OccGroup=2,OccGroup=3) -> FALSE | B53: Group R
A54: =OR(OccGroup=1,OccGroup=3) -> FALSE | B54: Comm
A55: =OR(OccGroup=5) -> FALSE | B55: Refrigeration
A59: U-factor, F-factor, Max WWR Look Ups
A74: FEEDER LOOK UP to set window and skylight values for standard compliance or high performance fenestration compliance
C75: This look up was set up to look up percent glass. With WSEC 2012 it was co-opted to look up glazing based upon selection of the high performance path glazing. % win could be still be used by assign glazing case differently
H78: Glazing Case (for SEC 2015: 1= HPF Win, 2=base, 3=2018 Electric heat values - in the past this was based by different levels of WWR.)
H79: =IF(heatfuel=1,3,IF(VertFenAlt=4,1,2)) -> 2
F82: For each window type value entered for every glazing case
F83: BLOCK FOR RAW U-VALUE DATA for Codes that vary values by glazing area. Referenced by lookup functions in U-value By Jurisdiction Table | Z83: BLOCK FOR RAW SHGC DATA for Codes that vary values by glazing area. Referenced by lookup functions in U-value By Jurisdiction Table
I84: Nres | J84: Nres | K84: Nres | L84: Res | M84: Res | N84: Res | O84: Refg | P84: Refg | Q84: Refg | R84: Freeze | S84: Freeze | T84: Freeze | AE84: Nres | AH84: Res | AI84: Refg | AJ84: Refg | AK84: Refg | AL84: Freezer | AM84: Freezer | AN84: Freezer
H85: Glazing Case | I85: 1 | J85: 2 | K85: Seattle | L85: 1 | M85: 2 | N85: Seattle | O85: 1 | P85: 2 | Q85: Seattle | R85: 1 | S85: 2 | T85: Seattle | Z85: SHGC | AE85: Seattle | AH85: Seattle | AI85: 1 | AJ85: 2 | AK85: Seattle | AL85: 1 | AM85: 2 | AN85: Seattle
F89: Window | G89: non-metal frame | H89: 1 | I89: 0.28 | J89: 0.28 | K89: 0.28 | L89: 0.28 | M89: 0.28 | N89: 0.28 | O89: 0.28 | P89: 0.28 | Q89: 0.28 | R89: 0.28 | S89: 0.28 | T89: 0.28 | Z89: Window | AB89: 1 | AC89: 0.35 | AD89: 0.35 | AE89: 0.35 | AF89: 0.35 | AG89: 0.35 | AH89: 0.35 | AI89: 0.35 | AJ89: 0.35 | AK89: 0.35 | AL89: 0.35 | AM89: 0.35 | AN89: 0.35
F90: Window | G90: non-metal frame | H90: 2 | I90: 0.3 | J90: 0.3 | K90: 0.3 | L90: 0.3 | M90: 0.3 | N90: 0.3 | O90: 0.3 | P90: 0.3 | Q90: 0.3 | R90: 0.3 | S90: 0.3 | T90: 0.3 | Z90: Window | AB90: 2 | AC90: 0.4 | AD90: 0.4 | AE90: 0.35 | AF90: 0.4 | AG90: 0.4 | AH90: 0.35 | AI90: 0.4 | AJ90: 0.4 | AK90: 0.35 | AL90: 0.4 | AM90: 0.4 | AN90: 0.35
F91: Window | G91: non-metal frame | H91: 3 | K91: 0.26 | N91: 0.26 | Q91: 0.26 | T91: 0.26 | Z91: Window | AB91: 3 | AE91: 0.35 | AH91: 0.35 | AK91: 0.35 | AN91: 0.35
F92: Window | G92: Metal Frame, fixed | H92: 1 | I92: 0.34 | J92: 0.34 | K92: 0.34 | L92: 0.34 | M92: 0.34 | N92: 0.34 | O92: 0.34 | P92: 0.34 | Q92: 0.34 | R92: 0.34 | S92: 0.34 | T92: 0.34 | Z92: Window | AA92: 0.2<=pf<0.5 | AB92: 1 | AC92: =AC89*AC93/AC90 -> 0.42 | AD92: 0.42 | AE92: 0.35 | AF92: 0.42 | AG92: 0.42 | AH92: 0.35 | AI92: 0.42 | AJ92: 0.42 | AK92: 0.35 | AL92: 0.42 | AM92: 0.42 | AN92: 0.35
F93: Window | G93: Metal Frame, fixed | H93: 2 | I93: 0.38 | J93: 0.38 | K93: 0.38 | L93: 0.38 | M93: 0.38 | N93: 0.38 | O93: 0.38 | P93: 0.38 | Q93: 0.38 | R93: 0.38 | S93: 0.38 | T93: 0.38 | Z93: Window | AA93: 0.2<=pf<0.5 | AB93: 2 | AC93: 0.48 | AD93: 0.48 | AE93: 0.45 | AF93: 0.48 | AG93: 0.48 | AH93: 0.45 | AI93: 0.48 | AJ93: 0.48 | AK93: 0.45 | AL93: 0.48 | AM93: 0.48 | AN93: 0.45
F94: Window | G94: Metal Frame, fixed | H94: 3 | K94: 0.31 | N94: 0.31 | Q94: 0.31 | T94: 0.31 | Z94: Window | AA94: 0.2<=pf<0.5 | AB94: 3 | AE94: 0.45 | AH94: 0.45 | AK94: 0.45 | AN94: 0.45
F95: Window | G95: Metal Frame, operable | H95: 1 | I95: 0.36 | J95: 0.36 | K95: 0.36 | L95: 0.36 | M95: 0.36 | N95: 0.36 | O95: 0.36 | P95: 0.36 | Q95: 0.36 | R95: 0.36 | S95: 0.36 | T95: 0.36 | Z95: Window | AA95: pf>=0.5 | AB95: 1 | AC95: =AC89*AC96/AC90 -> 0.56 | AD95: 0.56 | AE95: 0.35 | AF95: 0.56 | AG95: 0.56 | AH95: 0.35 | AI95: 0.56 | AJ95: 0.56 | AK95: 0.35 | AL95: 0.56 | AM95: 0.56 | AN95: 0.35
F96: Window | G96: Metal Frame, operable | H96: 2 | I96: 0.4 | J96: 0.4 | K96: 0.4 | L96: 0.4 | M96: 0.4 | N96: 0.4 | O96: 0.4 | P96: 0.4 | Q96: 0.4 | R96: 0.4 | S96: 0.4 | T96: 0.4 | Z96: Window | AA96: pf>=0.5 | AB96: 2 | AC96: 0.64 | AD96: 0.64 | AE96: 0.6 | AF96: 0.64 | AG96: 0.64 | AH96: 0.6 | AI96: 0.64 | AJ96: 0.64 | AK96: 0.6 | AL96: 0.64 | AM96: 0.64 | AN96: 0.6
F97: Window | G97: Metal Frame, operable | H97: 3 | K97: 0.38 | N97: 0.38 | Q97: 0.38 | T97: 0.38 | Z97: Window | AA97: pf>=0.5 | AB97: 3 | AE97: 0.6 | AH97: 0.6 | AK97: 0.6 | AN97: 0.6
F98: Window | G98: metal entrance door | H98: 1 | I98: 0.6 | J98: 0.6 | K98: 0.6 | L98: 0.6 | M98: 0.6 | N98: 0.6 | O98: 0.6 | P98: 0.6 | Q98: 0.6 | R98: 0.6 | S98: 0.6 | T98: 0.6 | Z98: Skylight | AB98: 1 | AC98: 0.35 | AD98: 0.35 | AE98: 0.32 | AF98: 0.35 | AG98: 0.35 | AH98: 0.32 | AI98: 0.35 | AJ98: 0.35 | AK98: 0.32 | AL98: 0.35 | AM98: 0.35 | AN98: 0.32
F99: Window | G99: metal entrance door | H99: 2 | I99: 0.6 | J99: 0.6 | K99: 0.6 | L99: 0.6 | M99: 0.6 | N99: 0.6 | O99: 0.6 | P99: 0.6 | Q99: 0.6 | R99: 0.6 | S99: 0.6 | T99: 0.6 | Z99: Skylight | AB99: 2 | AC99: 0.35 | AD99: 0.35 | AE99: 0.32 | AF99: 0.35 | AG99: 0.35 | AH99: 0.32 | AI99: 0.35 | AJ99: 0.35 | AK99: 0.32 | AL99: 0.35 | AM99: 0.35 | AN99: 0.32
F100: Window | G100: metal entrance door | H100: 3 | K100: 0.6 | N100: 0.6 | Q100: 0.6 | T100: 0.6 | Z100: Skylight | AB100: 3 | AE100: 0.32 | AH100: 0.32 | AK100: 0.32 | AN100: 0.32
F102: Skylight | G102: all | H102: 1 | I102: 0.5 | J102: 0.5 | K102: 0.45 | L102: 0.5 | M102: 0.5 | N102: 0.45 | O102: 0.5 | P102: 0.5 | Q102: 0.45 | R102: 0.5 | S102: 0.5 | T102: 0.45 | Z102: N. Window | AB102: 1 | AC102: =AC$89*AC103/AC$90 -> 0.46375 | AD102: =AD89*AD103/AD90 -> 0.46375 | AE102: =AE89*AE103/AE90 -> 0.53 | AF102: 0.46375 | AG102: 0.46375 | AH102: 0.53 | AI102: 0.46375 | AJ102: 0.46375 | AK102: 0.53 | AL102: 0.46375 | AM102: 0.46375 | AN102: 0.53
F103: Skylight | G103: all | H103: 2 | I103: 0.5 | J103: 0.5 | K103: 0.45 | L103: 0.5 | M103: 0.5 | N103: 0.45 | O103: 0.5 | P103: 0.5 | Q103: 0.45 | R103: 0.5 | S103: 0.5 | T103: 0.45 | Z103: N. Window | AB103: 2 | AC103: 0.53 | AD103: 0.53 | AE103: 0.53 | AF103: 0.53 | AG103: 0.53 | AH103: 0.53 | AI103: 0.53 | AJ103: 0.53 | AK103: 0.53 | AL103: 0.53 | AM103: 0.53 | AN103: 0.53
F104: Skylight | G104: all | H104: 3 | K104: 0.45 | N104: 0.45 | Q104: 0.45 | T104: 0.45 | Z104: N. Window | AB104: 3 | AE104: 0.53 | AH104: 0.53 | AK104: 0.53 | AN104: 0.53
Z105: N. Window | AA105: 0.2<=pf<0.5 | AB105: 1 | AC105: =AC$89*AC106/AC$90 -> 0.5075 | AD105: 0.5075 | AE105: 0.58 | AF105: 0.5075 | AG105: 0.5075 | AH105: 0.58 | AI105: 0.5075 | AJ105: 0.5075 | AK105: 0.58 | AL105: 0.5075 | AM105: 0.5075 | AN105: 0.58
Z106: N. Window | AA106: 0.2<=pf<0.5 | AB106: 2 | AC106: 0.58 | AD106: 0.58 | AE106: 0.58 | AF106: 0.58 | AG106: 0.58 | AH106: 0.58 | AI106: 0.58 | AJ106: 0.58 | AK106: 0.58 | AL106: 0.58 | AM106: 0.58 | AN106: 0.58
Z107: N. Window | AA107: 0.2<=pf<0.5 | AB107: 3 | AE107: 0.58 | AH107: 0.58 | AK107: 0.58 | AN107: 0.58
Z108: N. Window | AA108: pf>=0.5 | AB108: 1 | AC108: =AC$89*AC109/AC$90 -> 0.56 | AD108: 0.56 | AE108: 0.64 | AF108: 0.56 | AG108: 0.56 | AH108: 0.64 | AI108: 0.56 | AJ108: 0.56 | AK108: 0.64 | AL108: 0.56 | AM108: 0.56 | AN108: 0.64
Z109: N. Window | AA109: pf>=0.5 | AB109: 2 | AC109: 0.64 | AD109: 0.64 | AE109: 0.64 | AF109: 0.64 | AG109: 0.64 | AH109: 0.64 | AI109: 0.64 | AJ109: 0.64 | AK109: 0.64 | AL109: 0.64 | AM109: 0.64 | AN109: 0.64
Z110: N. Window | AA110: pf>=0.5 | AB110: 3 | AE110: 0.64 | AH110: 0.64 | AK110: 0.64 | AN110: 0.64
A111: MAIN LOOKUPS
E112: Selected Group (1=Nres, 2=Res, 3= Mixed, 4=Not specified) ==> | F112: 1 | G112: NOT USED 2015
E113: Calculation Type: 1=Building, 2=Refrigeration ==> | F113: =CalculationGroup -> 1 | J113: seattle also has swing and non-swing doors | X113: door type u-values | Y113: same | Z113: diff -swing / non-swing
E114: Selected Zone (1=Zone 4c/5, 2=Zone 6, 3= Seattle) ==> | F114: =IF('TA1'!A3<=2,'TA1'!A3,IF('TA1'!A3=3,4,3)) -> 3 | J114: and two floor u-values (mass/steel joist vs wood/other) | X114: mtl bld & steel frame wall u-values | Y114: same | Z114: diff
E115: Data Entered (0=no, 1=yes) ==> | F115: =IF('ENV-UA'!H112=0,0,1) -> 0 | J115: Glass U & SHGC is by 0-30 and >30 to 40% | X115: floor over air u-values | Y115: same | Z115: state + wd frame
E116: Refrigeration / Occupancy Offset ==> | F116: =IF(CalcType=3,6,IF(CalcType=4,9,0)) -> 0 | G116: =IF(CalcType=3,6,IF(CalcType=4,9,3)) -> 3
E117: Column # (idxU) ==> | G117: Not used 2015, Now action is in the Target U formulas. should return blank if nothing entered, warning if something entered but no zone/jurisdiction chosen, or the proper value
AS118: Not used in current forms
H119: Master Look Up Table of U-Values | AB119: Master Look Up Table of SHGC-Values
H120: Col Num ==> | I120: 1 | J120: 2 | K120: 3 | L120: 4 | M120: 5 | N120: 6 | O120: 7 | P120: 8 | Q120: 9 | R120: 10 | S120: 11 | T120: 12 | U120: 13 | V120: 14 | W120: 15 | AB120: Col Num ==> | AC120: 1 | AD120: 2 | AE120: 3 | AF120: 4 | AG120: 5 | AH120: 6 | AI120: 7 | AJ120: 8 | AK120: 9 | AL120: 10 | AM120: 11 | AN120: 12 | AO120: 13 | AP120: 14
H121: Group ==> | I121: Nres | J121: Nres | K121: Nres | L121: Res | M121: Res | N121: Res | O121: Refg | P121: Refg | Q121: Refg | R121: Freeze | S121: Freeze | T121: Freeze | AB121: Group ==> | AC121: Nres | AD121: Nres | AE121: Nres | AF121: Res | AG121: Res | AH121: Res | AI121: Refg | AJ121: Refg | AK121: Refg | AL121: Freezer | AM121: Freezer | AN121: Freezer
B122: Component | C122: Item Name | F122: =IF(F113=1,"Comm","Cooler") -> Comm | G122: =IF(F113=1,"Group R","Freezer") -> Group R | H122: Zone ==> | I122: 1 | J122: 2 | K122: Seattle | L122: 1 | M122: 2 | N122: Seattle | O122: 1 | P122: 2 | Q122: Seattle | R122: 1 | S122: 2 | T122: Seattle | AB122: Zone ==> | AC122: 1 | AD122: 2 | AE122: Seattle | AF122: 1 | AG122: 2 | AH122: Seattle | AI122: 1 | AJ122: 2 | AK122: Seattle | AL122: 1 | AM122: 2 | AN122: Seattle | AS122: SHGC Multipliers
C123: Long | D123: Short | F123: Target U | G123: Target U | AA123: Target SHGC | AB123: Target SHGC | AS123: PF | AT123: non-North | AU123: North
B124: Window | C124: non-metal frame | D124: non-metal frm | E124: 1 | F124: =IF(AND(OR($B124="AGWall",$B124="BGWall"),SemiHt),"NR",INDEX(TargetUbyJurisdiction,$E124,IF($F$112=4,13,IF($F$114=4,14,IF(AND(heatfuel=3,B124="Window"),15,$F$116+idxZone))))) -> set fuel | G124: =IF(AND(OR($B124="AGWall",$B124="BGWall"),SemiHt),"NR",INDEX(TargetUbyJurisdiction,$E124,IF($F$112=4,13,IF($F$114=4,14,IF(AND(heatfuel=3,B124="Window"),15,$G$116+idxZone))))) -> set fuel | I124: =INDEX(I$89:I$91,$H$79) -> 0.3 | J124: 0.3 | K124: 0.3 | L124: 0.3 | M124: 0.3 | N124: 0.3 | O124: 0.3 | P124: 0.3 | Q124: 0.3 | R124: 0.3 | S124: 0.3 | T124: 0.3 | U124: set occ. | V124: set zone | W124: set fuel | Y124: Window | Z124: 1 | AA124: =INDEX(TargetSHGCbyJurisdiction,$Z124,IF($F$112=4,13,IF($F$114=4,14,$F$116+( 1-1)*3+idxZone))) -> 0.35 | AB124: =INDEX(TargetSHGCbyJurisdiction,$Z124,IF($F$112=4,13,IF($F$114=4,14,$F$116+( 2-1)*3+idxZone))) -> 0.35 | AC124: =INDEX(AC89:AC91,$H$79) -> 0.4 | AD124: 0.4 | AE124: 0.35 | AF124: 0.4 | AG124: 0.4 | AH124: 0.35 | AI124: 0.4 | AJ124: 0.4 | AK124: 0.35 | AL124: 0.4 | AM124: 0.4 | AN124: 0.35 | AO124: set occ. | AP124: set zone | AS124: 0 | AT124: 1 | AU124: 1
B125: Window | C125: metal frame, fixed | D125: metal fix | E125: 2 | F125: set fuel | G125: set fuel | I125: =INDEX(I$92:I$94,$H$79) -> 0.38 | J125: 0.38 | K125: 0.38 | L125: 0.38 | M125: 0.38 | N125: 0.38 | O125: 0.38 | P125: 0.38 | Q125: 0.38 | R125: 0.38 | S125: 0.38 | T125: 0.38 | U125: set occ. | V125: set zone | W125: set fuel | Y125: Window 0.2<=pf<0.5 | Z125: 2 | AA125: =INDEX(TargetSHGCbyJurisdiction,Z125,IF($F$112=4,13,IF($F$114=4,14,$F$116+( 1-1)*3+idxZone))) -> 0.45 | AB125: 0.45 | AC125: =INDEX(AC92:AC94,$H$79) -> 0.48 | AD125: 0.48 | AE125: 0.45 | AF125: 0.48 | AG125: 0.48 | AH125: 0.45 | AI125: 0.48 | AJ125: 0.48 | AK125: 0.45 | AL125: 0.48 | AM125: 0.48 | AN125: 0.45 | AO125: set occ. | AP125: set zone | AS125: 0.100001 | AT125: 0.91 | AU125: 0.95
B126: Window | C126: metal frame, operable | D126: metal opp | E126: 3 | F126: set fuel | G126: set fuel | I126: =INDEX(I$95:I$97,$H$79) -> 0.4 | J126: 0.4 | K126: 0.4 | L126: 0.4 | M126: 0.4 | N126: 0.4 | O126: 0.4 | P126: 0.4 | Q126: 0.4 | R126: 0.4 | S126: 0.4 | T126: 0.4 | U126: set occ. | V126: set zone | W126: set fuel | Y126: Window pf>0.5 | Z126: 3 | AA126: 0.6 | AB126: 0.6 | AC126: =INDEX(AC95:AC97,$H$79) -> 0.64 | AD126: 0.64 | AE126: 0.6 | AF126: 0.64 | AG126: 0.64 | AH126: 0.6 | AI126: 0.64 | AJ126: 0.64 | AK126: 0.6 | AL126: 0.64 | AM126: 0.64 | AN126: 0.6 | AO126: set occ. | AP126: set zone | AS126: 0.200001 | AT126: 0.82 | AU126: 0.91
B127: Window | C127: metal entrance door | D127: metal frm door | E127: 4 | F127: set fuel | G127: set fuel | I127: 0.6 | J127: 0.6 | K127: 0.6 | L127: 0.6 | M127: 0.6 | N127: 0.6 | O127: 0.6 | P127: 0.6 | Q127: 0.6 | R127: 0.6 | S127: 0.6 | T127: 0.6 | U127: set occ. | V127: set zone | W127: set fuel | Y127: Skylight | Z127: 4 | AA127: 0.32 | AB127: 0.32 | AC127: =INDEX(AC98:AC100,$H$79) -> 0.35 | AD127: 0.35 | AE127: 0.32 | AF127: 0.35 | AG127: 0.35 | AH127: 0.32 | AI127: 0.35 | AJ127: 0.35 | AK127: 0.32 | AL127: 0.35 | AM127: 0.35 | AN127: 0.32 | AO127: set occ. | AP127: set zone | AS127: 0.300001 | AT127: 0.74 | AU127: 0.87
B128: Skylight | C128: All Types | D128: all types | E128: 5 | F128: 0.45 | G128: 0.45 | I128: 0.5 | J128: 0.5 | K128: 0.45 | L128: 0.5 | M128: 0.5 | N128: 0.45 | O128: 0.5 | P128: 0.5 | Q128: 0.45 | R128: 0.5 | S128: 0.5 | T128: 0.45 | U128: set occ. | V128: set zone | W128: set fuel | Y128: N Window | Z128: 5 | AA128: 0.53 | AB128: 0.53 | AC128: =INDEX(AC102:AC104,$H$79) -> 0.53 | AD128: 0.53 | AE128: 0.53 | AF128: 0.53 | AG128: 0.53 | AH128: 0.53 | AI128: 0.53 | AJ128: 0.53 | AK128: 0.53 | AL128: 0.53 | AM128: 0.53 | AN128: 0.53 | AO128: set occ. | AP128: set zone | AS128: 0.400001 | AT128: 0.67 | AU128: 0.84
B129: Door | C129: Swinging | D129: swing | E129: 6 | F129: 0.37 | G129: 0.37 | I129: 0.37 | J129: 0.37 | K129: 0.37 | L129: 0.37 | M129: 0.37 | N129: 0.37 | O129: 0.37 | P129: 0.37 | Q129: =K129 -> 0.37 | R129: 0.03 | S129: 0.03 | T129: 0.03 | U129: set occ. | V129: set zone | W129: set fuel | Y129: N Window 0.2<=pf<0.5 | Z129: 6 | AA129: 0.58 | AB129: 0.58 | AC129: =INDEX(AC105:AC107,$H$79) -> 0.58 | AD129: 0.58 | AE129: 0.58 | AF129: 0.58 | AG129: 0.58 | AH129: 0.58 | AI129: 0.58 | AJ129: 0.58 | AK129: 0.58 | AL129: 0.58 | AM129: 0.58 | AN129: 0.58 | AO129: set occ. | AP129: set zone | AS129: 0.500001 | AT129: 0.61 | AU129: 0.81
B130: Door | C130: Roll-up or sliding | D130: roll/slide | E130: 7 | F130: 0.34 | G130: 0.34 | I130: 0.34 | J130: 0.34 | K130: 0.34 | L130: 0.34 | M130: 0.34 | N130: 0.34 | O130: 0.34 | P130: 0.34 | Q130: 0.34 | R130: 0.03 | S130: 0.03 | T130: 0.03 | U130: set occ. | V130: set zone | W130: set fuel | Y130: N Window pf>0.5 | Z130: 7 | AA130: 0.64 | AB130: 0.64 | AC130: =INDEX(AC108:AC110,$H$79) -> 0.64 | AD130: 0.64 | AE130: 0.64 | AF130: 0.64 | AG130: 0.64 | AH130: 0.64 | AI130: 0.64 | AJ130: 0.64 | AK130: 0.64 | AL130: 0.64 | AM130: 0.64 | AN130: 0.64 | AO130: set occ. | AP130: set zone | AS130: 0.600001 | AT130: 0.56 | AU130: 0.78
B131: Roof | D131: above deck | E131: 8 | F131: 0.027 | G131: 0.027 | I131: 0.027 | J131: 0.027 | K131: 0.027 | L131: 0.027 | M131: 0.027 | N131: 0.027 | O131: 0.039 | P131: 0.039 | Q131: 0.039 | R131: 0.03 | S131: 0.03 | T131: 0.03 | U131: set occ. | V131: set zone | W131: set fuel | AS131: 0.700001 | AT131: 0.51 | AU131: 0.76
B132: Roof | D132: metal bldg | E132: 9 | F132: 0.027 | G132: 0.027 | I132: 0.031 | J132: 0.031 | K132: 0.027 | L132: 0.031 | M132: 0.031 | N132: 0.027 | O132: 0.039 | P132: 0.039 | Q132: 0.039 | R132: 0.03 | S132: 0.03 | T132: 0.03 | U132: set occ. | V132: set zone | W132: set fuel | AS132: 0.800001 | AT132: 0.47 | AU132: 0.75
B133: Roof | D133: attic/other | E133: 10 | F133: 0.021 | G133: 0.021 | I133: 0.021 | J133: 0.021 | K133: 0.021 | L133: 0.021 | M133: 0.021 | N133: 0.021 | O133: 0.039 | P133: 0.039 | Q133: 0.039 | R133: 0.03 | S133: 0.03 | T133: 0.03 | U133: set occ. | V133: set zone | W133: set fuel | AS133: 0.90001 | AT133: 0.44 | AU133: 0.73
B134: Roof | D134: joist/single | E134: 11 | F134: 0.027 | G134: 0.027 | I134: 0.027 | J134: 0.027 | K134: 0.027 | L134: 0.027 | M134: 0.027 | N134: 0.027 | O134: 0.039 | P134: 0.039 | Q134: 0.039 | R134: 0.03 | S134: 0.03 | T134: 0.03 | U134: set occ. | V134: set zone | W134: set fuel | Y134: sea has 0.056 for int ins | AS134: 1
B135: AGWall | D135: mass | E135: 12 | F135: 0.057 | G135: 0.057 | I135: 0.104 | J135: 0.104 | K135: 0.057 | L135: 0.078 | M135: 0.078 | N135: 0.057 | O135: 0.039 | P135: 0.039 | Q135: 0.039 | R135: 0.03 | S135: 0.03 | T135: 0.03 | U135: set occ. | V135: set zone | W135: set fuel
B136: AGWall | D136: metal bldg | E136: 13 | F136: 0.052 | G136: 0.052 | I136: 0.052 | J136: 0.052 | K136: 0.052 | L136: 0.052 | M136: 0.052 | N136: 0.052 | O136: 0.039 | P136: 0.039 | Q136: 0.039 | R136: 0.03 | S136: 0.03 | T136: 0.03 | U136: set occ. | V136: set zone | W136: set fuel | Y136: sea mtl bld and stl are diff
B137: AGWall | D137: steel frame | E137: 14 | F137: 0.055 | G137: 0.055 | I137: 0.055 | J137: 0.055 | K137: 0.055 | L137: 0.055 | M137: 0.055 | N137: 0.055 | O137: 0.039 | P137: 0.039 | Q137: 0.039 | R137: 0.03 | S137: 0.03 | T137: 0.03 | U137: set occ. | V137: set zone | W137: set fuel
B138: AGWall | D138: wood frame/other | E138: 15 | F138: 0.051 | G138: 0.054 | I138: 0.054 | J138: 0.054 | K138: 0.051 | L138: 0.054 | M138: 0.054 | N138: 0.054 | O138: 0.039 | P138: 0.039 | Q138: 0.039 | R138: 0.03 | S138: 0.03 | T138: 0.03 | U138: set occ. | V138: set zone | W138: set fuel
B139: AGWall | C139: transfer slab | D139: transfer slab | E139: 16 | F139: 0.2 | G139: 0.2 | I139: 0.2 | J139: 0.2 | K139: 0.2 | L139: 0.2 | M139: 0.2 | N139: 0.2 | O139: 0.039 | P139: 0.039 | Q139: 0.039 | R139: 0.03 | S139: 0.03 | T139: 0.03 | U139: set occ. | V139: set zone | W139: set fuel | Y139: sea has 0.025 wd frm
B140: AGWall | C140: cmu, same as mass but with corefill then okay in z1 | D140: CMU w/ Ins. Cores | E140: 17 | F140: 0.057 | G140: 0.057 | H140: Not used | I140: 0.25 | J140: 0.25 | K140: 0.057 | L140: 0.078 | M140: 0.078 | N140: 0.057 | O140: 0.039 | P140: 0.039 | Q140: 0.039 | R140: 0.03 | S140: 0.03 | T140: 0.03 | U140: set occ. | V140: set zone | W140: set fuel
B141: Floor | C141: Mass | D141: mass | E141: 18 | F141: 0.029 | G141: 0.029 | I141: 0.031 | J141: 0.031 | K141: 0.029 | L141: 0.031 | M141: 0.031 | N141: 0.029 | O141: 0.031 | P141: 0.031 | Q141: 0.029 | R141: 0.035 | S141: 0.035 | T141: 0.035 | U141: set occ. | V141: set zone | W141: set fuel
B142: Floor | C142: Joist/framing | D142: joist/frame | E142: 19 | F142: 0.029 | G142: 0.029 | I142: 0.029 | J142: 0.029 | K142: 0.029 | L142: 0.029 | M142: 0.029 | N142: 0.029 | O142: 0.029 | P142: 0.029 | Q142: 0.029 | R142: 0.035 | S142: 0.035 | T142: 0.035 | U142: set occ. | V142: set zone | W142: set fuel
B143: Floor | C143: Metal joist/framing | D143: Metal joist/framing | E143: 20 | F143: 0.029 | G143: 0.029 | H143: seattle only | K143: 0.029 | N143: 0.029 | Q143: 0.025 | R143: 0.035 | S143: 0.035 | T143: 0.035 | U143: set occ. | V143: set zone | W143: set fuel
B144: Floor | C144: Wood joist/framing | D144: Wood joist/framing | E144: 21 | F144: 0.025 | G144: 0.025 | H144: seattle only | K144: 0.025 | N144: 0.025 | Q144: 0.029 | R144: 0.035 | S144: 0.035 | T144: 0.035 | U144: set occ. | V144: set zone | W144: set fuel
B145: Floor | D145: Slab | E145: 22 | F145: 0.54 | G145: 0.54 | H145: All floors U0.029 - all zones | I145: 0.54 | J145: 0.54 | K145: 0.54 | L145: 0.54 | M145: 0.54 | N145: 0.54 | O145: 0.54 | P145: 0.52 | Q145: 0.54 | R145: 0.035 | S145: 0.035 | T145: 0.035 | U145: set occ. | V145: set zone | W145: set fuel
B146: Floor | D146: Heated Slab | E146: 23 | F146: 0.55 | G146: 0.55 | I146: 0.55 | J146: 0.55 | K146: 0.55 | L146: 0.55 | M146: 0.55 | N146: 0.55 | O146: 0.55 | P146: 0.55 | Q146: 0.55 | R146: 0.035 | S146: 0.035 | T146: 0.035 | U146: set occ. | V146: set zone | W146: set fuel
B147: BGWall | D147: mass | E147: 24 | F147: 0.07 | G147: 0.07 | I147: 0.104 | J147: 0.104 | K147: 0.07 | L147: 0.078 | M147: 0.078 | N147: 0.07 | O147: 0.039 | P147: 0.039 | Q147: 0.039 | R147: 0.03 | S147: 0.03 | T147: 0.03 | U147: set occ. | V147: set zone | W147: set fuel
B148: BGWall | D148: metal bldg | E148: 25 | F148: 0.07 | G148: 0.07 | H148: Not used | I148: 0.052 | J148: 0.052 | K148: 0.07 | L148: 0.052 | M148: 0.044 | N148: 0.07 | O148: 0.039 | P148: 0.039 | Q148: 0.039 | R148: 0.03 | S148: 0.03 | T148: 0.03 | U148: set occ. | V148: set zone | W148: set fuel
B149: BGWall | D149: steel frame | E149: 26 | F149: 0.07 | G149: 0.07 | H149: Not used | I149: 0.055 | J149: 0.049 | K149: 0.07 | L149: 0.055 | M149: 0.044 | N149: 0.07 | O149: 0.039 | P149: 0.039 | Q149: 0.039 | R149: 0.03 | S149: 0.03 | T149: 0.03 | U149: set occ. | V149: set zone | W149: set fuel | AB149: LABELS
B150: BGWall | D150: wood frame/other | E150: 27 | F150: 0.07 | G150: 0.07 | H150: Not used | I150: 0.054 | J150: 0.051 | K150: 0.07 | L150: 0.054 | M150: 0.044 | N150: 0.07 | O150: 0.039 | P150: 0.039 | Q150: 0.039 | R150: 0.03 | S150: 0.03 | T150: 0.03 | U150: set occ. | V150: set zone | W150: set fuel | AC150: Nres | AD150: Nres | AE150: Nres | AF150: Res | AG150: Res | AH150: Res | AI150: Refg | AJ150: Refg | AK150: Refg | AL150: Freezer | AM150: Freezer | AN150: Freezer
B151: MAXGlass | C151: MAXGlass | D151: MAXGlass | E151: 28 | F151: 0.3 | G151: 0.3 | I151: =IF(OR(hpfwin,dlz50pct,dlz25pct,hpmwin),0.4,0.3) -> 0.3 | J151: 0.3 | K151: =IF(OR(AND(hpfwin,heatfuel=2),dlz50pct,dlz25pct,hpmwin),0.4,0.3) -> 0.3 | L151: 0.3 | M151: 0.3 | N151: =IF(OR(AND(hpfwin,heatfuel=2),dlz50pct,dlz25pct,hpmwin),0.4,0.3) -> 0.3 | O151: 0.3 | P151: 0.3 | Q151: =IF(OR(AND(hpfwin,heatfuel=2),dlz50pct,dlz25pct,hpmwin),0.4,0.3) -> 0.3 | R151: =IF(OR(hpfwin,dlz50pct,dlz25pct,hpmwin),0.4,0.3) -> 0.3 | S151: 0.3 | T151: 0.3 | U151: 0 | V151: 0 | AA151: =F122 -> Comm | AB151: =G122 -> Group R | AC151: 1 | AD151: 2 | AE151: Seattle | AF151: 1 | AG151: 2 | AH151: Seattle | AI151: 1 | AJ151: 2 | AK151: Seattle | AL151: 1 | AM151: 2 | AN151: Seattle
B152: MAXskylight | C152: MAXskylight | D152: MAXskylight | E152: 29 | F152: 0.05 | G152: 0.05 | I152: 0.03 | J152: 0.03 | K152: 0.05 | L152: 0.03 | M152: 0.03 | N152: 0.05 | O152: 0.03 | P152: 0.03 | Q152: 0.05 | R152: 0.05 | S152: 0.05 | T152: 0.05 | U152: 0 | V152: 0 | AA152: SHGC | AB152: SHGC
Y153: Window | Z153: 1 | AA153: =INDEX( $AC$153:$AQ$159,$Z153,IF($F$112=4,13,IF($F$114=4,14,$F$116+( 1-1)*3+idxZone))) -> 0.35 | AB153: =INDEX( $AC$153:$AQ$159,$Z153,IF($F$112=4,13,IF($F$114=4,14,$F$116+( 2-1)*3+idxZone))) -> 0.35 | AC153: =TEXT(AC124,"0.00#") -> 0.40 | AD153: 0.40 | AE153: 0.35 | AF153: 0.40 | AG153: 0.40 | AH153: 0.35 | AI153: 0.40 | AJ153: 0.40 | AK153: 0.35 | AL153: 0.40 | AM153: 0.40 | AN153: 0.35 | AO153: set occ. | AP153: set zone
H154: Group ==> | I154: Nres | J154: Nres | K154: Nres | L154: Res | M154: Res | N154: Res | O154: Refg | P154: Refg | Q154: Refg | R154: Freeze | S154: Freeze | T154: Freeze | Y154: Window 0.2<=pf<0.5 | Z154: 2 | AA154: 0.45 | AB154: 0.45 | AC154: =TEXT(AC125,"0.00#") -> 0.48 | AD154: 0.48 | AE154: 0.45 | AF154: 0.48 | AG154: 0.48 | AH154: 0.45 | AI154: 0.48 | AJ154: 0.48 | AK154: 0.45 | AL154: 0.48 | AM154: 0.48 | AN154: 0.45 | AO154: set occ. | AP154: set zone
B155: Component | C155: Item Name | F155: =F122 -> Comm | G155: =G122 -> Group R | H155: Zone ==> | I155: 1 | J155: 2 | K155: Seattle | L155: 1 | M155: 2 | N155: Seattle | O155: 1 | P155: 2 | Q155: Seattle | R155: 1 | S155: 2 | T155: Seattle | Y155: Window pf>0.5 | Z155: 3 | AA155: 0.60 | AB155: 0.60 | AC155: =TEXT(AC126,"0.00#") -> 0.64 | AD155: 0.64 | AE155: 0.60 | AF155: 0.64 | AG155: 0.64 | AH155: 0.60 | AI155: 0.64 | AJ155: 0.64 | AK155: 0.60 | AL155: 0.64 | AM155: 0.64 | AN155: 0.60 | AO155: set occ. | AP155: set zone
C156: Long | D156: Short | F156: Target Label | G156: Target Label | H156: Code | Y156: Skylight | Z156: 4 | AA156: 0.32 | AB156: 0.32 | AC156: =TEXT(AC127,"0.00#") -> 0.35 | AD156: 0.35 | AE156: 0.32 | AF156: 0.35 | AG156: 0.35 | AH156: 0.32 | AI156: 0.35 | AJ156: 0.35 | AK156: 0.32 | AL156: 0.35 | AM156: 0.35 | AN156: 0.32 | AO156: set occ. | AP156: set zone
B157: =B124 -> Window | C157: non-metal frame | D157: non-metal frm | E157: 1 | F157: =IF(AND(OR($B157="AGWall",$B157="BGWall"),SemiHt),"NR",INDEX(TargetLabelByJurisdiction,$E157,IF($F$112=4,13,IF($F$114=4,14,IF(AND(heatfuel=3,B157="Window"),15,$F$116+idxZone))))) -> set fuel | G157: =IF(AND(OR($B157="AGWall",$B157="BGWall"),SemiHt),"NR",INDEX(TargetLabelByJurisdiction,$E157,IF($F$112=4,13,IF($F$114=4,14,IF(AND(heatfuel=3,B157="Window"),15,$G$116+idxZone))))) -> set fuel | H157: nmfrm | I157: =CONCATENATE("U-",TEXT(I124,"0.00#")) -> U-0.30 | J157: U-0.30 | K157: U-0.30 | L157: U-0.30 | M157: U-0.30 | N157: U-0.30 | O157: U-0.30 | P157: U-0.30 | Q157: U-0.30 | U157: set occ. | V157: set zone | W157: set fuel | Y157: N Window | Z157: 5 | AA157: 0.53 | AB157: 0.53 | AC157: =TEXT(AC128,"0.00#") -> 0.53 | AD157: 0.53 | AE157: 0.53 | AF157: 0.53 | AG157: 0.53 | AH157: 0.53 | AI157: 0.53 | AJ157: 0.53 | AK157: 0.53 | AL157: 0.53 | AM157: 0.53 | AN157: 0.53 | AO157: set occ. | AP157: set zone
B158: Window | C158: metal frame, fixed | D158: metal fix | E158: 2 | F158: set fuel | G158: set fuel | H158: mfrm | I158: =CONCATENATE("U-",TEXT(I125,"0.00#")) -> U-0.38 | J158: U-0.38 | K158: U-0.38 | L158: U-0.38 | M158: U-0.38 | N158: U-0.38 | O158: U-0.38 | P158: U-0.38 | Q158: U-0.38 | U158: set occ. | V158: set zone | W158: set fuel | Y158: N Window 0.2<=pf<0.5 | Z158: 6 | AA158: 0.58 | AB158: 0.58 | AC158: =TEXT(AC129,"0.00#") -> 0.58 | AD158: 0.58 | AE158: 0.58 | AF158: 0.58 | AG158: 0.58 | AH158: 0.58 | AI158: 0.58 | AJ158: 0.58 | AK158: 0.58 | AL158: 0.58 | AM158: 0.58 | AN158: 0.58 | AO158: set occ. | AP158: set zone
B159: Window | C159: metal frame, operable | D159: metal opp | E159: 3 | F159: set fuel | G159: set fuel | H159: med | I159: =CONCATENATE("U-",TEXT(I126,"0.00#")) -> U-0.40 | J159: U-0.40 | K159: U-0.40 | L159: U-0.40 | M159: U-0.40 | N159: U-0.40 | O159: U-0.40 | P159: U-0.40 | Q159: U-0.40 | U159: set occ. | V159: set zone | W159: set fuel | Y159: N Window pf>0.5 | Z159: 7 | AA159: 0.64 | AB159: 0.64 | AC159: =TEXT(AC130,"0.00#") -> 0.64 | AD159: 0.64 | AE159: 0.64 | AF159: 0.64 | AG159: 0.64 | AH159: 0.64 | AI159: 0.64 | AJ159: 0.64 | AK159: 0.64 | AL159: 0.64 | AM159: 0.64 | AN159: 0.64 | AO159: set occ. | AP159: set zone
B160: Window | C160: metal entrance door | D160: metal frm door | E160: 4 | F160: set fuel | G160: set fuel | H160: nc | I160: =CONCATENATE("U-",TEXT(I127,"0.00#")) -> U-0.60 | J160: U-0.60 | K160: U-0.60 | L160: U-0.60 | M160: U-0.60 | N160: U-0.60 | O160: U-0.60 | P160: U-0.60 | Q160: U-0.60 | U160: set occ. | V160: set zone | W160: set fuel
B161: Skylight | C161: All Types | D161: all types | E161: 5 | F161: U-0.45 | G161: U-0.45 | H161: wc | I161: =CONCATENATE("U-",TEXT(I128,"0.00#")) -> U-0.50 | J161: U-0.50 | K161: U-0.45 | L161: U-0.50 | M161: U-0.50 | N161: U-0.45 | O161: U-0.50 | P161: U-0.50 | Q161: U-0.45 | U161: set occ. | V161: set zone | W161: set fuel
B162: Door | C162: Swinging | D162: swing | E162: 6 | F162: U-0.37 | G162: U-0.37 | H162: dr | I162: =CONCATENATE("U-",TEXT(I129,"0.00#")) -> U-0.37 | J162: U-0.37 | K162: U-0.37 | L162: U-0.37 | M162: U-0.37 | N162: U-0.37 | O162: U-0.37 | P162: U-0.37 | Q162: U-0.37 | U162: set occ. | V162: set zone | W162: set fuel
B163: Door | C163: Roll-up or sliding | D163: roll/slide | E163: 7 | F163: U-0.34 | G163: U-0.34 | I163: =CONCATENATE("U-",TEXT(I130,"0.00#")) -> U-0.34 | J163: U-0.34 | K163: U-0.34 | L163: U-0.34 | M163: U-0.34 | N163: U-0.34 | U163: set occ. | V163: set zone | W163: set fuel
B164: Roof | C164: 0 | D164: above deck | E164: 8 | F164: U-0.027 | G164: U-0.027 | I164: U-0.027 | J164: U-0.027 | K164: U-0.027 | L164: U-0.027 | M164: U-0.027 | N164: U-0.027 | U164: set occ. | V164: set zone | W164: set fuel
B165: Roof | C165: 0 | D165: metal bldg | E165: 9 | F165: U-0.027 | G165: U-0.027 | I165: U-0.031 | J165: U-0.031 | K165: U-0.027 | L165: U-0.031 | M165: U-0.031 | N165: U-0.027 | U165: set occ. | V165: set zone | W165: set fuel
B166: Roof | C166: 0 | D166: attic/other | E166: 10 | F166: U-0.021 | G166: U-0.021 | I166: U-0.021 | J166: U-0.021 | K166: U-0.021 | L166: U-0.021 | M166: U-0.021 | N166: U-0.021 | U166: set occ. | V166: set zone | W166: set fuel
B167: Roof | C167: 0 | D167: joist/single | E167: 11 | F167: U-0.027 | G167: U-0.027 | I167: U-0.027 | J167: U-0.027 | K167: U-0.027 | L167: U-0.027 | M167: U-0.027 | N167: U-0.027 | U167: set occ. | V167: set zone | W167: set fuel
B168: AGWall | C168: 0 | D168: mass | E168: 12 | F168: U-0.057 | G168: U-0.057 | I168: U-0.104 | J168: U-0.104 | K168: U-0.057 | L168: U-0.078 | M168: U-0.078 | N168: U-0.057 | U168: set occ. | V168: set zone | W168: set fuel
B169: AGWall | C169: 0 | D169: metal bldg | E169: 13 | F169: U-0.052 | G169: U-0.052 | I169: U-0.052 | J169: U-0.052 | K169: U-0.052 | L169: U-0.052 | M169: U-0.052 | N169: U-0.052 | U169: set occ. | V169: set zone | W169: set fuel
B170: AGWall | C170: 0 | D170: steel frame | E170: 14 | F170: U-0.055 | G170: U-0.055 | I170: U-0.055 | J170: U-0.055 | K170: U-0.055 | L170: U-0.055 | M170: U-0.055 | N170: U-0.055 | U170: set occ. | V170: set zone | W170: set fuel
B171: AGWall | C171: 0 | D171: wood frame/other | E171: 15 | F171: U-0.051 | G171: U-0.054 | I171: U-0.054 | J171: U-0.054 | K171: U-0.051 | L171: U-0.054 | M171: U-0.054 | N171: U-0.054 | U171: set occ. | V171: set zone | W171: set fuel
B172: AGWall | C172: transfer slab | D172: transfer slab | E172: 16 | F172: U-0.20 | G172: U-0.20 | I172: U-0.20 | J172: U-0.20 | K172: U-0.20 | L172: U-0.20 | M172: U-0.20 | N172: U-0.20 | U172: set occ. | V172: set zone | W172: set fuel
B173: AGWall | C173: cmu, same as mass but with corefill then okay in z1 | D173: CMU w/ Ins. Cores | E173: 17 | F173: U-0.057 | G173: U-0.057 | I173: U-0.25 | J173: U-0.25 | K173: U-0.057 | L173: U-0.078 | M173: U-0.078 | N173: U-0.057 | U173: set occ. | V173: set zone | W173: set fuel
B174: Floor | C174: Mass | D174: mass | E174: 18 | F174: U-0.029 | G174: U-0.029 | I174: U-0.031 | J174: U-0.031 | K174: U-0.029 | L174: U-0.031 | M174: U-0.031 | N174: U-0.029 | U174: set occ. | V174: set zone | W174: set fuel
B175: Floor | C175: Joist/framing | D175: joist/frame | E175: 19 | F175: U-0.029 | G175: U-0.029 | I175: U-0.029 | J175: U-0.029 | K175: U-0.029 | L175: U-0.029 | M175: U-0.029 | N175: U-0.029 | U175: set occ. | V175: set zone | W175: set fuel
B176: Floor | C176: Metal joist/framing | D176: Metal joist/framing | E176: 20 | F176: U-0.029 | G176: U-0.029 | I176: U-0.00 | J176: U-0.00 | K176: U-0.029 | L176: U-0.00 | M176: U-0.00 | N176: U-0.029 | U176: set occ. | V176: set zone | W176: set fuel
B177: Floor | C177: Wood joist/framing | D177: Wood joist/framing | E177: 21 | F177: U-0.025 | G177: U-0.025 | I177: U-0.00 | J177: U-0.00 | K177: U-0.025 | L177: U-0.00 | M177: U-0.00 | N177: U-0.025 | U177: set occ. | V177: set zone | W177: set fuel
B178: Floor | C178: 0 | D178: Slab | E178: 22 | F178: F-0.54 | G178: F-0.54 | I178: =CONCATENATE("F-",TEXT(I145,"0.00#")) -> F-0.54 | J178: F-0.54 | K178: F-0.54 | L178: F-0.54 | M178: F-0.54 | N178: F-0.54 | U178: set occ. | V178: set zone | W178: set fuel
B179: Floor | C179: 0 | D179: Heated Slab | E179: 23 | F179: F-0.55 | G179: F-0.55 | I179: F-0.55 | J179: F-0.55 | K179: F-0.55 | L179: F-0.55 | M179: F-0.55 | N179: F-0.55 | U179: set occ. | V179: set zone | W179: set fuel
B180: BGWall | C180: 0 | D180: mass | E180: 24 | F180: U-0.07 | G180: U-0.07 | I180: =CONCATENATE("U-",TEXT(I147,"0.00#")) -> U-0.104 | J180: U-0.104 | K180: U-0.07 | L180: U-0.078 | M180: U-0.078 | N180: U-0.07 | U180: set occ. | V180: set zone | W180: set fuel
B181: BGWall | C181: 0 | D181: metal bldg | E181: 25 | F181: U-0.07 | G181: U-0.07 | I181: U-0.052 | J181: U-0.052 | K181: U-0.07 | L181: U-0.052 | M181: U-0.044 | N181: U-0.07 | U181: set occ. | V181: set zone | W181: set fuel
B182: BGWall | C182: 0 | D182: steel frame | E182: 26 | F182: U-0.07 | G182: U-0.07 | I182: U-0.055 | J182: U-0.049 | K182: U-0.07 | L182: U-0.055 | M182: U-0.044 | N182: U-0.07 | U182: set occ. | V182: set zone | W182: set fuel
B183: BGWall | C183: 0 | D183: wood frame/other | E183: 27 | F183: U-0.07 | G183: U-0.07 | I183: U-0.054 | J183: U-0.051 | K183: U-0.07 | L183: U-0.054 | M183: U-0.044 | N183: U-0.07 | U183: set occ. | V183: set zone | W183: set fuel

Sheet Target Area Adjustments
B1: Vertical Fenestration Target Area Adjustment Calculations
C5: VF = Vertical fenestration (exclude SLG) | G5: NW = Net above grade wall including opaque doors (excludes fenestration)
C6: SG = Exempt Single Glazing | G6: Gross Exterior Above-Grade Wall Area= VF + NW
C7: AG = Above-grade wall (exclude SLW) | G7: DR = Opaque doors ( NOT USED IN CITY FORM - Include area with net wall)
C8: SLW = Street level gross wall below ceiling | G8: SLG = Area of window in Street level qualified wall
D9: height and 20' per C402.3.1 | G9: SLT = Window area transferred to Street Level Retail wall from other areas
B11: Proposed Areas | F11: Vertical Fenestration | H11: Exempt Single Glaze | J11: Street Level Retail Transfer | L11: Net Above Grade Wall
D12: Project Areas -> | E12: VF= | F12: =IF(ComponentPath=1,EnvSumTotWin-EnvSumExmptSngl,SUM('ENV-UA'!H84:H98)) -> 0 | G12: SG= | H12: =EnvSumExmptSngl -> 0 | I12: SLT= | J12: =SLRtransfer -> n/a | K12: NW= | L12: =IF(ComponentPath=1,EnvSumNetWall,SUM('ENV-UA'!H27:H44)+SUM('ENV-UA'!H78:H83)) -> 0
D13: Existing Non-project Areas -> | E13: VF= | F13: =IF(ComponentPath=1,EnvSumTotWinExisting,'ENV-UA'!G11) -> 0 | K13: NW= | L13: =IF(ComponentPath=1,EnvSumNetWallExisting,'ENV-UA'!I11) -> 0
B15: Maximum Target Vertical Fenestration Calculation
B16: Gross Exterior AG Wall Area | D16: Max Vert. Fen. % (C402.3.1) | H16: Maximum Target Vert. Fen. Area
B17: =(SUM(F12:H13,L12:L13)) -> 0 | C17: x | D17: ='TA1'!F151 -> 0.3 | E17: ¸ | F17: 100 | G17: = | H17: =B17*D17 -> 0
B20: Base Target Vert. Fen. Area | D20: Window area transferred to Street Level Retail (SLT) | F20: Maximum Target Vert. Fen. Area | H20: Gross Exterior AG Wall | J20: Maximum Target Vert. Fen %
B21: =H17 -> 0 | C21: - | D21: =IF(SLR=2,0,J12) -> 0 | E21: = | F21: =B21-D21 -> 0 | G21: ¸ | H21: =TA_GrossWall -> 0 | I21: = | J21: =IF(H21=0,"",MIN(1,F21/H21)) -> 
A23: Vertical Fenestration Component Performance Target Area Adjustment Calculation
B25: Total Vertical Fenestration | F25: Delta Vertical Fenestration | H25: 0 | J25: Excess Vertical Fenestration
B26: =SUM(F12:F13) -> 0 | C26: - | D26: =F21 -> 0 | E26: = | F26: =B26-D26 -> 0 | H26: ô greater | I26: = | J26: =MAX(0,H27) -> 0
H27: =F26 -> 0
B29: Project Vertical Fenestration | D29: Excess Vertical Fenestration | F29: Target Vertical Fenestration | H29: Total Vertical Fenestration | J29: Target VF Multiplier
B30: =F12 -> 0 | C30: - | D30: =J26 -> 0 | E30: = | F30: =B30-D30 -> 0 | G30: ¸ | H30: =B30 -> 0 | I30: = | J30: =IF(H30>0,F30/H30,0) -> 0
B32: Net AG Wall Area | D32: Excess Fenestration | F32: Target Net Wall Area | H32: Net Wall | J32: Target Net Wall Mult.
B33: =L12 -> 0 | C33: + | D33: =D30 -> 0 | E33: = | F33: =B33+D33 -> 0 | G33: ¸ | H33: =B33 -> 0 | I33: = | J33: =IF(H33>0,F33/H33,0) -> 0
B35: Target Areas - UA
C36: Commercial
D37: Vertical Fenestration | F37: Proposed Area | H37: Target VF Mult. | J37: Target Area
D38: Non-metal frame | F38: =SUM('ENV-UA'!H84:H86) -> 0 | G38: x | H38: =IF(F38>0,$J$30,0) -> 0 | I38: = | J38: =F38*H38 -> 0
D39: Metal frame, fixed | F39: =SUM('ENV-UA'!H87:H90) -> 0 | G39: x | H39: =IF(F39>0,$J$30,0) -> 0 | I39: = | J39: =F39*H39 -> 0
D40: Metal frame, operable | F40: =SUM('ENV-UA'!H91:H94) -> 0 | G40: x | H40: =IF(F40>0,$J$30,0) -> 0 | I40: = | J40: =F40*H40 -> 0
D41: Metal frame, entrance door | F41: =SUM('ENV-UA'!H95:H98) -> 0 | G41: x | H41: =IF(F41>0,$J$30,0) -> 0 | I41: = | J41: =F41*H41 -> 0
D42: Above-grade Wall | F42: Proposed Area | H42: Target Net Wall Mult. | J42: Target Area
D43: Steel Frame | F43: =SUM('ENV-UA'!H27:H29) -> 0 | G43: x | H43: =IF(F43>0,$J$33,0) -> 0 | I43: = | J43: =F43*H43 -> 0
D44: Metal Building | F44: =SUM('ENV-UA'!H30:H32) -> 0 | G44: x | H44: 0 | I44: = | J44: 0
D45: Wood / Other frame | F45: =SUM('ENV-UA'!H33:H35) -> 0 | G45: x | H45: 0 | I45: = | J45: 0
D46: Mass | F46: =SUM('ENV-UA'!H36:H38) -> 0 | G46: x | H46: 0 | I46: = | J46: 0
D47: Mass Transfer Deck | F47: =SUM('ENV-UA'!H39:H41) -> 0 | G47: x | H47: 0 | I47: = | J47: 0
D48: Group R Wood / Other frame | F48: =SUM('ENV-UA'!H42:H44) -> 0 | G48: x | H48: 0 | I48: = | J48: 0
D50: Sum of Proposed | E50: Sum of Proposed | F50: =SUM(F38:F49) -> 0 | H50: Sum of Target | J50: =SUM(J38:J49) -> 0
B52: Target Areas - SHGC x A
D53: Non-North Vertical Fenestration | F53: Proposed Area | H53: Target VF Mult. | J53: Target Area
D54: PF < 0.2 | F54: =SUMPRODUCT(('ENV-SHGC'!$E$25:$E$34)*('ENV-SHGC'!$C$25:$C$34>=0)*('ENV-SHGC'!$C$25:$C$34<0.2)) -> 0 | G54: x | H54: =IF(F54>0,$J$30,0) -> 0 | I54: = | J54: =F54*H54 -> 0
D55: 0.2 ≤ PF < 0.5 | F55: =SUMPRODUCT(('ENV-SHGC'!$E$25:$E$34)*('ENV-SHGC'!$C$25:$C$34>=0.2)*('ENV-SHGC'!$C$25:$C$34<0.5)) -> 0 | G55: x | H55: =IF(F55>0,$J$30,0) -> 0 | I55: = | J55: =F55*H55 -> 0
D56: PF ≥ 0.5 | F56: =SUMPRODUCT(('ENV-SHGC'!$E$25:$E$34)*('ENV-SHGC'!$C$25:$C$34>=0.5)*('ENV-SHGC'!$C$25:$C$34<99)) -> 0 | G56: x | H56: =IF(F56>0,$J$30,0) -> 0 | I56: = | J56: =F56*H56 -> 0
D57: North Vertical Fenestration
D58: PF < 0.2 | F58: =SUMPRODUCT(('ENV-SHGC'!$E$41:$E$47)*('ENV-SHGC'!$C$41:$C$47>=0)*('ENV-SHGC'!$C$41:$C$47<0.2)) -> 0 | G58: x | H58: =IF(F58>0,$J$30,0) -> 0 | I58: = | J58: =F58*H58 -> 0
D59: 0.2 ≤ PF < 0.5 | F59: =SUMPRODUCT(('ENV-SHGC'!$E$41:$E$47)*('ENV-SHGC'!$C$41:$C$47>=0.2)*('ENV-SHGC'!$C$41:$C$47<0.5)) -> 0 | G59: x | H59: =IF(F59>0,$J$30,0) -> 0 | I59: = | J59: =F59*H59 -> 0
D60: PF ≥ 0.5 | F60: =SUMPRODUCT(('ENV-SHGC'!$E$41:$E$47)*('ENV-SHGC'!$C$41:$C$47>=0.5)*('ENV-SHGC'!$C$41:$C$47<99)) -> 0 | G60: x | H60: =IF(F60>0,$J$30,0) -> 0 | I60: = | J60: =F60*H60 -> 0
B62: Skylight Target Area Adjustment Calculations
C65: SKY= Skylight | E65: NR - Net roof (excludes skylight) | I65: Gross Exterior Roof Area = SKY + NR
E67: Skylight (Horizontal Fenestration)
B68: Proposed Areas | H68: Opaque Roof
D69: Project Areas -> | E69: SKY= | F69: =IF(ComponentPath=1,EnvSumTotSky,SUM('ENV-UA'!H99:H102)) -> 0 | G69: NR= | H69: =IF(ComponentPath=1,EnvSumNetRoof,SUM('ENV-UA'!H15:H26)) -> 0
D70: Existing Non-project Areas -> | E70: SKY= | F70: =IF(ComponentPath=1,EnvSumTotSkyExisting,'ENV-UA'!G12) -> 0 | G70: NR= | H70: =IF(ComponentPath=1,EnvSumNetRoofExisting,'ENV-UA'!I12) -> 0
B72: Gross Exterior Roof Area | D72: Max Skylight % (C402.3.1) | H72: Maximum Skylight Fenestration Area
B73: =SUM(F69:H70) -> 0 | C73: x | D73: ='TA1'!F152 -> 0.05 | E73: ¸ | F73: 100 | G73: = | H73: =B73*D73 -> 0
J75: Excess Skylight
B76: Total Skylight Area | D76: Maximum Target | F76: Delta Skylight Area | H76: 0
B77: =SUM(F69:F70) -> 0 | C77: - | D77: =H73 -> 0 | E77: = | F77: =B77-D77 -> 0 | H77: ô greater | I77: = | J77: =MAX(0,H78) -> 0
H78: =F77 -> 0
B80: Total Skylight Area | D80: Excess Skylight | F80: Target Skylight Area | H80: Total Skylight Area | J80: Target SKY Multiplier
B81: =F69 -> 0 | C81: - | D81: =J77 -> 0 | E81: = | F81: =B81-D81 -> 0 | G81: ¸ | H81: =B81 -> 0 | I81: = | J81: =IF(H81>0,F81/H81,0) -> 0
B83: Net Roof Area | D83: Excess Skylight | F83: Target Net Roof Area | H83: Net Roof | J83: Target Net Roof Mult.
B84: =H69 -> 0 | C84: + | D84: =D81 -> 0 | E84: = | F84: =B84+D84 -> 0 | G84: ¸ | H84: =B84 -> 0 | I84: = | J84: =IF(H84>0,F84/H84,0) -> 0
B86: Target Areas - UA and SHGC x A
D87: Skylight | F87: Proposed Area | H87: Target SKY Mult. | J87: Target Area
D88: All | F88: =SUM('ENV-UA'!H99:H102) -> 0 | G88: x | H88: =IF(F88>0,$J$81,0) -> 0 | I88: = | J88: =F88*H88 -> 0
D89: Roof | F89: Proposed Area | H89: Target Net Roof Mult. | J89: Target Area
D90: Insulation Above Deck | F90: =SUM('ENV-UA'!H15:H17) -> 0 | G90: x | H90: =IF(F90>0,$J$84,0) -> 0 | I90: = | J90: =F90*H90 -> 0
D91: Metal Building | F91: =SUM('ENV-UA'!H18:H20) -> 0 | G91: x | H91: =IF(F91>0,$J$84,0) -> 0 | J91: =F91*H91 -> 0
D92: Joist / Single Rafter | F92: =SUM('ENV-UA'!H21:H23) -> 0 | G92: x | H92: =IF(F92>0,$J$84,0) -> 0 | I92: = | J92: =F92*H92 -> 0
D93: Attic / All Others | F93: =SUM('ENV-UA'!H24:H26) -> 0 | G93: x | H93: =IF(F93>0,$J$84,0) -> 0 | I93: = | J93: =F93*H93 -> 0
E95: Sum of Proposed | F95: =SUM(F87:F93) -> 0 | I95: Sum of Target | J95: =SUM(J87:J93) -> 0

Sheet ENV-SHGC
A1: SHGC Calculation | J1: ENV-SHGC
A2: ='ENV-SUM'!A2 -> 2015 Seattle Energy Code Compliance Forms for Commercial Buildings including R2, R3, & R4 over 3 stories and all R1 | J2: ='ENV-SUM'!G2 -> Revised Aug 2019
A3: ='ENV-SUM'!B3 -> Project Title: | C3: =IF('PROJ-SUM'!$D$3="1 - This title will copy onto other forms","1 - Fill this line out on PROJ-SUM",'PROJ-SUM'!$D$3) -> 1 - Fill this line out on PROJ-SUM | H3: Date | I3: =TEXT('PROJ-SUM'!$F$3,"mm/dd/yyyy") -> 01/01/2019
A4: Target Insulation Allowance: | H4: For SDCI Use
B5: =IF(CompliancePath<>2,"Component Performance Not Selected",IF(CalcType=1,"Fully Conditioned Space - Commercial, Group R, Mixed Use",IF(CalcType=2,"Semi-heated Space",IF(CalcType=3,"Refrigerated Cooler - See note 11 on ENV-UA",IF(CalcType=4,"Refrigerated Freezer - See note 12 on ENV-UA",""))))) -> Component Performance Not Selected
A6: Fenestration Area as % gross above-grade wall area | E6: =IF('ENV-SUM'!E33>0,'ENV-SUM'!E33,0) ->  | G6: ='Target Area Adjustments'!D17 -> 0.3
A7: Skylight Area as % gross roof area | E7: =IF('ENV-SUM'!G33>0,'ENV-SUM'!G33,0) ->  | G7: ='Target Area Adjustments'!D73 -> 0.05
A8: Vertical Fenestration Alternates: | G8: ='TA1'!A28 -> None Selected on ENV-SUM
H10: User Note
A12: Skylights | F12: Proposed SHGC | H12: Target SHGC
A13: Sch. ID | B13: Provide SHGC source and fenestration schedule ID | E13: SHGC | F13: x Area (A) | G13: = SHGC x A | H13: SHGC | I13: x Area (A) = | J13: SHGC x A
G14: =IF(AND(F14=0,E14=0),0,IF(OR(F14=0,E14=0),NA(),F14*E14)) -> 0 | H14: ='TA1'!AA127 -> 0.32 | I14: ='Target Area Adjustments'!J88 -> 0 | J14: =IF(TYPE(H14*I14)<>1,0,H14*I14) -> 0
G15: =IF(AND(F15=0,E15=0),0,IF(OR(F15=0,E15=0),NA(),F15*E15)) -> 0 | H15: SHGC | J15: ='TA1'!AA156 -> 0.32
G16: =IF(AND(F16=0,E16=0),0,IF(OR(F16=0,E16=0),NA(),F16*E16)) -> 0
G17: =IF(AND(F17=0,E17=0),0,IF(OR(F17=0,E17=0),NA(),F17*E17)) -> 0
G18: =IF(AND(F18=0,E18=0),0,IF(OR(F18=0,E18=0),NA(),F18*E18)) -> 0 | M18: 0
E19: Skylight Totals | F19: =SUM(F13:F18) -> 0 | G19: =SUM(G13:G18) -> 0 | I19: =SUM(I13:I18) -> 0 | J19: =SUM(J13:J18) -> 0
J21: =IF(ABS(F19-'Target Area Adjustments'!F69)>0.1,IF(F19>'Target Area Adjustments'!F69,CONCATENATE("More proposed skylight area here than ENV-UA - Remove ",TEXT(F19-'Target Area Adjustments'!F69,"0.0")),CONCATENATE("Less proposed skylight area here than ENV-UA - Add ",TEXT('Target Area Adjustments'!F69-F19,"0.0" )) )," ") -> 
A23: All Non-North Vertical Fenestration+ | E23: Proposed SHGC | G23: PF Category | H23: Target SHGC ++
A24: Sch. ID | B24: Provide SHGC source and fenestration schedule ID | C24: PF | D24: SHGC | E24: x Area (A) | F24: = SHGC x A | H24: SHGC | I24: x Area (A) = | J24: SHGC x A
F25: =IF(AND(E25=0,D25=0),0,IF(OR(E25=0,D25=0),NA(),E25*D25)) -> 0 | G25: PF < 0.2 | H25: ='TA1'!AA124 -> 0.35 | I25: ='Target Area Adjustments'!J54 -> 0 | J25: =IF(TYPE(H25*I25)<>1,0,H25*I25) -> 0
F26: 0 | G26: 0.2≤PF<0.5 | H26: ='TA1'!AA125 -> 0.45 | I26: ='Target Area Adjustments'!J55 -> 0 | J26: =IF(TYPE(H26*I26)<>1,0,H26*I26) -> 0
F27: 0 | G27: PF ≥ 0.5 | H27: ='TA1'!AA126 -> 0.6 | I27: ='Target Area Adjustments'!J56 -> 0 | J27: =IF(TYPE(H27*I27)<>1,0,H27*I27) -> 0
F28: 0
F29: 0
F30: 0
F31: 0
F32: 0
F33: 0
F34: 0 | M34: 0
D35: Non-North Window Totals | E35: =SUM(E24:E34) -> 0 | F35: =SUM(F24:F34) -> 0 | I35: =SUM(I24:I34) -> 0 | J35: =SUM(J24:J34) -> 0
A39: North Vertical Fenestration+ | E39: Proposed SHGC | G39: PF Category | H39: Target SHGC++
A40: Sch. ID | B40: Provide SHGC source and fenestration schedule ID | C40: PF | D40: SHGC | E40: x Area (A) | F40: = SHGC x A | H40: SHGC | I40: x Area (A) = | J40: SHGC x A
F41: =IF(AND(E41=0,D41=0),0,IF(OR(E41=0,D41=0),NA(),E41*D41)) -> 0 | G41: PF < 0.2 | H41: ='TA1'!AA128 -> 0.53 | I41: ='Target Area Adjustments'!J58 -> 0 | J41: =IF(TYPE(H41*I41)<>1,0,H41*I41) -> 0
F42: 0 | G42: 0.2≤PF<0.5 | H42: ='TA1'!AA129 -> 0.58 | I42: ='Target Area Adjustments'!J59 -> 0 | J42: =IF(TYPE(H42*I42)<>1,0,H42*I42) -> 0
F43: 0 | G43: PF ≥ 0.5 | H43: ='TA1'!AA130 -> 0.64 | I43: ='Target Area Adjustments'!J60 -> 0 | J43: =IF(TYPE(H43*I43)<>1,0,H43*I43) -> 0
F44: 0
F45: 0
F46: =IF(AND(E46=0,D46=0),0,IF(OR(E46=0,D46=0),NA(),E46*D46)) -> 0 | N46: 0
F47: 0 | M47: 0 | N47: 0
D48: North Window Totals | E48: =SUM(E40:E47) -> 0 | F48: =SUM(F40:F47) -> 0 | G48: =SUM(G40:G47) -> 0 | I48: =SUM(I40:I47) -> 0 | J48: =SUM(J40:J47) -> 0
B49: ='ENV-UA'!D110 -> 
F50: Area | G50: SHGC x A | I50: Area | J50: SHGC x A
E51: Total (Skylight + Window) | F51: =F19+E35+E48 -> 0 | G51: =G19+F35+F48 -> 0 | I51: =I19+I35+I48 -> 0 | J51: =J19+J35+J48 -> 0
J53: =IF(ABS((E35+E48)-'Target Area Adjustments'!F12)>0.1,IF((E35+E48)>'Target Area Adjustments'!F12,CONCATENATE("More proposed vertical fenestration here than ENV-UA - Remove ",TEXT((E35+E48)-'Target Area Adjustments'!F12,"0.0")),CONCATENATE("Less proposed vertical fenestration here than ENV-UA: Add ",TEXT('Target Area Adjustments'!F12-(E35+E48),"0.0" )) ),"") -> 
A54: Component Performance Compliance (SHGC) | J54: =IF(CompliancePath<>2,"Component Performance Compliance Not Selected",IF(AND(J53="",G51>0,J51>0),IF(G51>J51+0.00001,"SHGC DOES NOT COMPLY","SHGC COMPLIES"),"")) -> Component Performance Compliance Not Selected

Sheet ENV-CHK
A1: Building Permit Plans Checklist, pg. 1 | F1: ENV-CHK
A2: =ReadMe!A2 -> 2015 Seattle Energy Code Compliance Forms for Commercial Buildings including R2, R3, & R4 over 3 stories and all R1 | F2: =ReadMe!B3 -> Revised Aug 2019
A3: Project Title: | C3: =IF('PROJ-SUM'!$D$3="1 - This title will copy onto other forms","1 - Fill this line out on PROJ-SUM",'PROJ-SUM'!$D$3) -> 1 - Fill this line out on PROJ-SUM | E3: Date | F3: ='ENV-SUM'!G3 -> 01/01/2019
A4: The following information is necessary to check a building permit application for compliance with the building envelope requirements in the Seattle Energy Code, Commercial Provisions.
A5: Applicability (yes,no,na) | B5: Code Section | C5: Component | D5: Compliance information required in permit documents | E5: Location in Documents | F5: SDCI Notes
A6: SCOPE
B7: C402.1.1 | C7: Low energy spaces | D7: Low energy spaces are identified on plans; include project information, and calculations if applicable, that demonstrate spaces are eligible for envelope provisions exemption
B8: C402.1.1.1 | C8: Semi-heated spaces | D8: Semi-heated spaces are identified on plans, include calculations that demonstrate spaces are eligible for wall insulation exemption
B9: C402.1.2 | C9: Equipment Buildings | D9: Provide building area, average wall and roof U-factor, and installed equipment information that demonstrates equipment building is eligible for envelope provision exemption
B10: C410.2 | C10: Walk-in and warehouse cooler and freezer spaces | D10: Cooler and freezer spaces are identified on plans; C410 envelope compliance forms provided (pending)
B11: C101.4.1 | C11: Mixed occupancy | D11: Identify boundaries of spaces with different occupancy requirements on plans
B12: C503.2 | C12: Change of space conditioning | D12: Identify on plans existing unconditioned spaces changing to semi-heated or conditioned space, and existing semi-heated spaces changing to conditioned space; also identify heated but not cooled space larger than 2000 SF changing to both heated and cooled; provide calculations for existing and final level of space conditioning, and calculations that demonstrate alteration complies with current SEC
B13: C505.1 | C13: Change of occupancy | D13: Identify on plans existing F, S and U-occupancy spaces undergoing a change in occupancy; provide calculations that demonstrate alteration complies with the current SEC | E13: .
D14: Identify on plans pre-2002 Group R spaces undergoing a change to a commercial occupancy; provide calculations that demonstrate alteration complies with the current SEC
D15: Identify on plans non-Group R occupancy spaces undergoing a change to Group R; provide calculations that demonstrate alteration complies with the current SEC
A16: ENVELOPE PROVISIONS
B17: C103.2 C103.6.3 | C17: Compliance documentation | D17: Indicate envelope insulation compliance path and provide applicable forms; ENV-PRESCRIPTIVE or ENV-UA / ENV-SHGC for component performance
D18: If complying via total building performance, provide a list of all proposed envelope component types, areas and U-values
B19: C303.1.1 C303.1.2 | C19: Insulation identification | D19: Indicate identification mark shall be applied to all insulation materials and insulation installed such that the mark is readily observable during inspection
B20: C303.1.3 C402.4.3 | C20: Fenestration product rating | D20: Fenestration products shall be labeled with rated U-factor, SHGC, VT, and leakage rating
B21: C303.1.1 C402.2.1 | C21: General insulation installation | D21: Indicate installation methods, thicknesses, densities and clearances to achieve the intended R-value of all insulation materials;
D22: Where two or more layers of rigid insulation will be used, indicate that edge joints between layers are staggered
B23: C103.2 C402.2.2 | C23: Roof assembly insulation | D23: Indicate R-value(s) of cavity/continuous insulation on roof sections;
D24: Indicate framing materials on roof sections;
D25: Indicate method of framing for ceilings below vented attics and vaulted ceilings per A102.2 (std, adv);
D26: Provide area weighted average U-factor calculation for insulation whose thickness varies by 1 inch or less;
D27: Indicate effective U-factors of tapered insulation entirely above deck per A102.2.6; include roof configuration and slope, maximum R-value at peak and minimum R-value at low point for all roof surfaces
D28: Indicate R-values for thermal spacers and each insulation layer, and liner system (LS) method for metal building roofs
B29: C402.2.2 | C29: Skylight curb insulation | D29: Indicate curb insulation R-value on roof section if not included in skylight NFRC rating
B30: C103.2 C402.2.3 C402.2.4 C303.2.1 | C30: Above/below grade wall insulation | D30: Indicate R-value(s) of cavity/continuous insulation on wall sections;
D31: Indicate framing materials on wall sections;
D32: Indicate method of framing for wood const per A103.2 (std, int, adv);
D33: Indicate material density category, wall weight and heat capacity for qualifying mass walls;
D34: For qualifying ASTM C90 masonry walls, indicate loose-fill core insulation material and percentage of cores filled including grouted cores, bond beams, vertical fills, headers and any other grouted cores;
D35: Indicate method of protection of exposed exterior basement/crawlspace wall insulation
A36: Building Permit Plans Checklist, pg. 2 | F36: ENV-CHK
A37: =A2 -> 2015 Seattle Energy Code Compliance Forms for Commercial Buildings including R2, R3, & R4 over 3 stories and all R1
A38: Project Title: | C38: =IF('ENV-SUM'!$C$3="1 - This address line will copy onto other forms","1 - Fill this line out on ENV-SUM",'ENV-SUM'!$C$3) -> 1 - Fill this line out on PROJ-SUM | E38: Date | F38: =F3 -> 01/01/2019
A39: Applicability (yes,no,na) | B39: Code Section | C39: Component | D39: Compliance information required in permit documents | E39: Location in Documents | F39: Building Department Notes
B40: C103.2 C402.4.4 | C40: Opaque doors | D40: Indicate rated U-factor (swinging) or R-value (non-swinging - roll-up/sliding) on wall sections or in door schedules - applies to doors with less than 50% glazed area
B41: C402.2.5 | C41: Floor over outdoor or unconditioned space insulation | D41: Indicate R-value(s) of cavity/continuous insulation on floor sections;
D42: Indicate framing material on floor sections;
D43: Indicate material density category and weight of qualifying mass floors
B44: C402.2.6 C303.2.1 | C44: Slab-on-grade floor insulation | D44: Indicate R-value of continuous insulation on wall section or foundation detail;
D45: Indicate insulation extends down vertically and/or horizontally the required distance from top of slab;
D46: Indicate method of protection of exposed exterior slab edge insulation
B47: C402.2.6 C303.2.1 | C47: Radiantly heated slab-on-grade floor insulation | D47: Indicate R-value of continuous insulation on wall section or foundation detail;
D48: Indicate insulation extends down vertically from top of slab and then horizontally under the entire slab;
D49: Indicate method of protection of exposed exterior slab edge insulation
B50: C402.2.8 | C50: Radiant heating system insulation | D50: Indicate insulation R-value behind radiant panels, U-bend/headers and bottom surface of radiantly heated floors (other than radiantly heated slab-on-grade)
B51: C402.4.1 C502.2.1 C503.3.2 | C51: Vertical fenestration maximum area | D51: Provide calculation for total vertical fenestration area as a percentage of gross above grade wall area (WWR) for new construction, additions and alterations in ENV-SUM
B52: C402.4.1.1 C405.2.4.1 C502.2.1 C503.3.2 | C52: Increased prescriptive maximum vertical fenestration area with daylight zones and controls | D52: Provide calculations showing that the percentage of overall conditioned floor area within daylight zones is equal to or greater than 50% in 1 & 2 story buildings: OR
D53: Provide calculations showing that the percentage of overall net floor area within daylight zones is equal to or greater than 25% in buildings 3 stories or more; include the gross floor area and list of spaces omitted for the net floor area;
D54: Note in envelope plans that all lighting fixtures located within daylight zones shall be provided with daylight responsive controls per SEC Section C405.2.4.1; indicate method of control in lighting fixture schedules
D55: Indicate that the VT of vertical fenestration is at least 1.1 times the rated SHGC
B56: C402.4.1.3 C502.2.1 C503.3.2 | C56: Increased prescriptive maximum vertical fenestration area with high-performance glazing | D56: Indicate high performance U-factors and SHGC values in fenestration schedules;
D57: Indicate if an area-weighted U-factor is used for multiple fenestration elements within the same fenestration category per Table C402.3; provide U-factor calculations
B58: C402.4.1.4 C403.6 | C58: Increased prescriptive maximum vertical fenestration area with DOAS mechanical systems | D58: Indicate that for eligibility, all occupied, conditioned spaces will be served by a dedicated outside air system (DOAS) that delivers ventilation air without requiring operation of the heating/cooling system per Section C403.6
B59: C402.1.5 | C59: Wall/vertical fenestration target area adjustment | D59: Indicate if component performance with target area adjustment will be used to account for vertical fenestration area in excess of the prescriptive maximum allowed
B60: C402.4.1 C502.2.2 C503.3.3 | C60: Skylight maximum area | D60: Provide calculation for total skylight area as a percentage of gross roof area (SRR) for new construction, additions and alterations in ENV-SUM
B61: C402.1.5.2 | C61: Roof/skylight target area adjustment | D61: Indicate if component performance with target area adjustment will be used to account for skylight area in excess of the prescriptive maximum allowed
B62: C402.4.3 C303.1.3 | C62: U-factors, SHGC and VT for all fenestration assemblies | D62: Indicate U-factors, SHGC and VT values in fenestration schedules;
D63: Indicate if an area-weighted U-factor is used for multiple fenestration elements within the same fenestration category per Table C402.3; provide U-factor calculations
D64: Indicate if values are NFRC or default; if default then specify frame type, glazing layers, gap width, low-e coatings, gas-fill
B65: C402.4 | C65: HVAC Heating Energy Type | D65: Indicate HVAC Heating Energy Type for each calculation area. After 1/1/2018 provide description and calculation for any exceptions utilized
B66: C402.4.3 | C66: Permanent shading devices | D66: For windows with overhangs or permanent projection shading devices, provide projection factor calculations (Equation C4-6) and associated minimum SHGC for north and non-north orientations
A67: Building Permit Plans Checklist, pg. 3 | F67: ENV-CHK
A68: =A2 -> 2015 Seattle Energy Code Compliance Forms for Commercial Buildings including R2, R3, & R4 over 3 stories and all R1
A69: Project Title: | C69: =IF('ENV-SUM'!$C$3="1 - This address line will copy onto other forms","1 - Fill this line out on ENV-SUM",'ENV-SUM'!$C$3) -> 1 - Fill this line out on PROJ-SUM | E69: Date | F69: =F34 -> 00:00:00
A70: Applicability (yes,no,na) | B70: Code Section | C70: Component | D70: Compliance information required in permit documents | E70: Location in Documents | F70: Building Department Notes
B71: C402.4.2 | C71: Spaces in single story buildings requiring skylights | D71: In single story buildings, provide list of enclosed spaces that exceed 2,500 sf; for each space identify the space use, floor area, floor-to-ceiling height, whether skylights are installed or exception taken;
D72: For each space requiring skylights, provide calculation of percentage of conditioned floor area located within a top daylight zone;
D73: For each space requiring skylights, calculate the ratio of skylight area to toplight daylight zone area; min 3%, OR;
D74: Calculate skylight effective aperture (Equation C4-5) within the top daylight zone; min. 1%
D75: Indicate haze factor of skylight glazing material or diffuser
A76: ADDITIONAL EFFICIENCY PACKAGE OPTION - ENHANCED ENVELOPE PERFORMANCE
B77: C406.8 | C77: Enhanced envelope performance | D77: To comply with additional efficiency package option, demonstrate envelope insulation compliance via component performance; provide ENV-UA / ENV-SHGC compliance forms; verify that building total UA is 15% lower than the Code target UA
A78: AIR LEAKAGE
B79: C402.5.1.1 | C79: Air barrier construction and sealing | D79: Identify location and provide diagram of continuous air barrier in plans and sections;
D80: Provide details for all joints, transitions in materials, penetrations in air barrier and note method of sealing (caulked, gasketed, or other approved method)
B81: C402.5.3 | C81: Rooms containing open combustion fuel burning appliances used for space conditioning | D81: Indicate that room(s) containing non-direct vent appliances is isolated from conditioned space by the thermal envelope with a sealed air barrier, including doorway gasketing and sealing around ductwork and piping penetrations;
D82: Indicate insulation provided in wall, floor and ceiling of the room envelope, and insulation required on combustion air ductwork
B83: C402.5.4 | C83: Access openings and doors to shafts, chutes, stairways and doors | D83: Indicate locations of all access openings and doors to shafts, chutes, stairways and elevators;
D84: Indicate method of gasketing, weatherstripping and sealing of these openings
B85: C402.5.5 C403.2.4.3 | C85: Outdoor air intakes, exhausts and relief openings | D85: Indicate locations of all stairway enclosure, elevator shaft and building pressurization relief openings, outside air intakes and exhaust openings;
D86: Note in envelope plans that all relief, outside air intake and exhaust openings shall be provided with dampers in accordance with Mechanical Section C403.2.4.3
B87: C402.5.8 | C87: Recessed lighting in building envelope | D87: Indicate method of sealing between light fixture housing and wall or ceiling;
D88: Note in envelope plans that all recessed lighting fixtures shall be IC rated and have an air leakage rating not greater than 2 cfm per ASTM E283 test; include these requirements in lighting fixture schedules
B89: C402.5.6 | C89: Loading dock seals | D89: Indicate weather seal at cargo and loading dock doors
B90: C402.5.7 | C90: Vestibules | D90: Indicate locations and dimensions of vestibules and air curtains;
D91: Indicate exception and criteria utilized for all building entrances and exits that do not have a vestibule or air curtain;
D92: Indicate required performance for air curtains installed per exception 7;
D93: For unconditioned vestibules, indicate which envelope assembly (interior or exterior) complies with the requirements for a conditioned space
B94: C103.2 C402.5.1.2 | C94: Building air leakage test | D94: Indicate on plans the location of air barrier boundaries and area calculations on all six sides of the air barrier;
D95: Indicate air barrier test method in accordance with ASTM E779 or approved equivalent;
D96: Indicate required maximum leakage rate for compliance.
D97: Include the following requirements in project documents: (1) Submit air barrier test report to jurisdiction once test is completed; (2) If test results exceed 0.30 cfm/ft2 at 0.3 in. wg (1.5 L/s X m2 at 75 Pa), then visually inspect air barrier and seal noted sources of leakage and submit a follow-up report to jurisdiction noting corrective measures taken; (3) Include air barrier test report in compliance documentation provided to owner.
A98: Building Permit Plans Checklist, pg. 4 | F98: ENV-CHK
A99: =$A$2 -> 2015 Seattle Energy Code Compliance Forms for Commercial Buildings including R2, R3, & R4 over 3 stories and all R1 | F99: =F2 -> Revised Aug 2019
A100: Project Title: | C100: =C3 -> 1 - Fill this line out on PROJ-SUM | E100: Date | F100: =F3 -> 01/01/2019
A101: Applicability (yes,no,na) | B101: Code Section | C101: Component | D101: Compliance information required in permit documents | E101: Location in Documents | F101: Building Department Notes
A102: ADDITIONAL EFFICIENCY PACKAGE OPTION - REDUCED AIR INFILTRATION
B103: C406.9 | C103: Reduced air infiltration | D103: If option C406.9 is selected, indicate in project documents that the air barrier test results shall not exceed 0.25 cfm/ft2 (1.27 L/s*m2) for Group R buildings, and 0.22 cfm/ft2 (1.11 L/s*m2) for all others, at 0.3 in. wg (75 Pa); indicate air barrier test report shall be submitted to the jurisdiction and building owner once test is completed
A104: ALTERATIONS
B105: C503.1 C503.3.1 | C105: Roof alteration - insulation | D105: For a roof alteration where existing ceiling cavities are exposed, indicate cavities are insulated to full depth at R-3 per inch
D106: For a roof covering replacement where insulation is installed entirely above the roof deck, indicate insulation complies with requirements for new construction per Tables C402.1.3 or C402.1.4
B107: C503.1 | C107: Wall and floor alteration - insulation | D107: For a wall or floor alteration (floor over outdoor or unconditioned space) where existing envelope cavities are exposed, indicate cavities are insulated to full depth at R-3 per inch
B108: C503.3.2 | C108: Addition of vertical fenestration | D108: Where the addition of new vertical fenestration results in total building window-to-wall ratio (WWR) exceeding the maximum allowed per C402.4.1, demonstrate method of compliance (vertical fenestration alternate per C503.3.2, or component performance compliance with target area adjustment for the total building)
B109: C503.3.3 | C109: Addition of skylights | D109: Where the addition of new skylights results in total building skylight-to-roof ratio (SRR) exceeding the maximum allowed per C402.4.1, demonstrate component performance compliance with target area adjustment for the total building
A110: PROJECT CLOSE OUT DOCUMENTATION
B111: C103.6.3 | C111: Project close out documentation requirements | D111: Indicate in plans that project close out documentation is required including applicable WSEC envelope compliance forms and calculations, and fenestration NFRC rating certificates
A112: If "no" is selected for any question, provide explanation:
A116: r
A120: End of Building Permit Plans Checklist
A124: na
A125: no
A126: yes
